Department Family,Entity,Payment Date,Expense Type,Expense Area,Supplier,Transaction Number,Amount,Invoice Description,Postal Code,Expenditure Classification
Food Standards Agency,Food Standards Agency,22/04/2015,Project Programme expenditure,Microbiological Food Safety Branch,University Of Liverpool,21516238,"149,605.00",PO 416864 CLAIM FOR DELIVERABLE 0301,L69 7ZX,Programme
Food Standards Agency,Food Standards Agency,09/04/2015,Rates/contrib in lieu of rates,Security & Estates,London Borough Of Camden,14031510465200,"104,652.00",AVIATION HOUSE RATES - APRIL INSTALMENT,WC1H 8NH,Admin
Food Standards Agency,Food Standards Agency,24/04/2015,Rent & management charges - Outside London,Security & Estates,Defra C/o Capita,1002548153,"99,796.82",FOSS HOUSE Q4 RENT,EC2V 7NQ,Admin
Food Standards Agency,Food Standards Agency,02/04/2015,Rent & management charges - Outside London,Security & Estates,Defra C/o Capita,1002547467,"79,258.24",FOSS HOUSE Q3 RENT,EC2V 7NQ,Admin
Food Standards Agency,Food Standards Agency,01/04/2015,Project Programme expenditure,Contaminants HoD,C E F A S,8004715,"67,938.15","PO 418529 INVOICE FOR THEE PERIOD JAN,FEB 2015",NR33 0HT,Programme
Food Standards Agency,Food Standards Agency,01/04/2015,Project Programme expenditure,Contaminants HoD,C E F A S,8004715,"67,938.15","PO 418529 INVOICE FOR THEE PERIOD JAN,FEB 2015",NR33 0HT,Programme
Food Standards Agency,Food Standards Agency,14/04/2015,Project Programme expenditure,Contaminants HoD,C E F A S,8004771,"67,938.15",PO 418529 C6134 INVOICE FOR THE PERIOD MARCH 15,NR33 0HT,Programme
Food Standards Agency,Food Standards Agency,01/04/2015,Project Programme expenditure,Contaminants HoD,C E F A S,8004513,"66,275.67","PO 418529,  C6134  FS102066A  RADIOLOGICAL ANALYSIS OF FOOD SERVICES",NR33 0HT,Programme
Food Standards Agency,Food Standards Agency,22/04/2015,Project Programme expenditure,Microbiological Food Safety Branch,University Of Liverpool,21516238,"48,986.00",PO 416864 CLAIM FOR DELIVERABLE 0301,L69 7ZX,Programme
Food Standards Agency,Food Standards Agency,08/04/2015,Project Programme expenditure,EU Regulatory Reform Branch,University Of Lincoln,12050622,"45,146.00",PO 419062 FS514103 MICROBIAL EVALUATION OF POULTRY AND PORK MSM,LN6 7TS,Programme
Food Standards Agency,Food Standards Agency,10/04/2015,Project Programme expenditure,Comms Directors Office,T N S Uk Ltd,260147244,"43,183.00",PO 421514 ,W5 1UA,Programme
Food Standards Agency,Food Standards Agency,14/04/2015,Project Programme expenditure,Consumer Protection & Commercial Support,Food & Environment Research Agency,F0041661,"38,230.00",PO 404231 QUATER 4 JAN TO MARCH 2015,YO41 1LZ,Programme
Food Standards Agency,Food Standards Agency,30/04/2015,Project Programme expenditure,Comms Directors Office,Bell Integrated Communications Ltd,1927,"36,160.00",PO 420967 PROJECT 0001135 FSA PHOTOGRAPHY PRE PRODUCTION,WC2H 0AU,Programme
Food Standards Agency,Food Standards Agency,20/04/2015,Project Programme expenditure,Operations Local Delivery ,N S F Safety & Quality UK Ltd,5044315,"35,895.63",PO 417523 216 MARCH 2015 COACHING VISITS,OX29 8SJ,Programme
Food Standards Agency,Food Standards Agency,08/04/2015,Project Programme expenditure,Consumer Protection & Commercial Support,R A B Consultants Ltd,20150761,"32,108.00",PO 419228 REF 655B INCIDENT RESPONSE CAPABILITY & EMERGENCY EXERCISE PROGRAMME MARCH 2015,WS13 6QG,Programme
Food Standards Agency,Food Standards Agency,01/04/2015,Project Programme expenditure,Analysis & Research Branch,C E F A S,8004646,"30,709.80",PO 414837 QTR 4 INVOICE FOR JAN TO MAR F/Y 2014/15,NR33 0HT,Programme
Food Standards Agency,Food Standards Agency,14/04/2015,Project Programme expenditure,Consumer Protection & Commercial Support,DEFRA,1000049470,"29,365.00",PO 421049 DEFRA017 - DEFRA OGD RECHARGE,YO1 7PX,Programme
Food Standards Agency,Food Standards Agency,24/04/2015,Rates/contrib in lieu of rates,Security & Estates,Defra C/o Capita,1002548153,"29,066.41",FOSS HOUSE Q4 RENT,EC2V 7NQ,Admin
Food Standards Agency,Food Standards Agency,09/04/2015,Laundry,Operational Delivery,Apparelmaster UK Ltd,60010,"28,676.76",PO 417042 REGION 546 NEW CONTRACT 22/02/15 TO 28/03/15,PR2 9ZD,Programme
Food Standards Agency,Food Standards Agency,24/04/2015,Project Programme expenditure,Food Production Branch,Hutchinson Scientific Ltd,HSS1102,"28,540.00","PO 421718 TO MARCH 2011 HOSTING, MAINTENANCE, SERVICE AND DEVELOPMENT",DD4 7RH,Programme
Food Standards Agency,Food Standards Agency,14/04/2015,Project Programme expenditure,Operations Local Delivery ,C E F A S,8004752,"27,000.00","PO 413441, QTR 4 INVOICE  C3019, 01/01/2015 TO 31/03/2015",NR33 0HT,Programme
Food Standards Agency,Food Standards Agency,09/04/2015,Service charges,Security & Estates,G4s Integrated Services (Uk) Ltd,M21143,"26,864.50",G4S MONTHLY FM CHARGES MAR2015,S81 7QF,Admin
Food Standards Agency,Food Standards Agency,20/04/2015,Utilities,Security & Estates,E D F Energy,000000207013,"26,071.74",EDF INV 207013 - AVH ELECTRICITY CHARGES - MARCH 2015,EX1 3UT,Admin
Food Standards Agency,Food Standards Agency,01/04/2015,Project Programme expenditure,Operations Local Delivery ,C E F A S,8004663,"25,703.22",PO 417774 & 410792 C5666 PHYTOPLANKTON ANALYSIS 45 SAMPLES @ 222.00 & sANITARY SURVEY FEB 2015,NR33 0HT,Programme
Food Standards Agency,Food Standards Agency,01/04/2015,Programme Evidence & Research Expenditure,Food Production Branch,Animal Health and Veterinary Laboratories Agency,5000055656,"25,266.58",PO 407957 RESEARCH AND DEV REPORTABLE DISEASE AND ZOONOSES,KT15 3NB,Programme
Food Standards Agency,Food Standards Agency,30/04/2015,Meat inspection equipment/consumables,Operational Delivery,Arco UK Ltd,50114135,"25,000.00",PO 417064 FOR GOODS INVOICED UP UNTIL 30.11.2014,HU1 2SJ,Programme
Food Standards Agency,Food Standards Agency,20/04/2015,Meat inspection equipment/consumables,Operational Delivery,Arco UK Ltd,50115452,"24,541.22",PO 417064 FOR GOODS INVOICED UP UNTIL 31.01.15,HU1 2SJ,Programme
Food Standards Agency,Food Standards Agency,14/04/2015,Project Programme expenditure,Comms Directors Office,Harris Interactive UK Ltd,78718,"24,340.00",PO 421477 FSA SME STUDY FULL INVOICE,W5 5TH,Programme
Food Standards Agency,Food Standards Agency,02/04/2015,Rates/contrib in lieu of rates,Security & Estates,Defra C/o Capita,1002547467,"22,863.07",FOSS HOUSE Q3 RENT,EC2V 7NQ,Admin
Food Standards Agency,Food Standards Agency,02/04/2015,Fixed Assets Additions,Security & Estates,G4s Integrated Services (Uk) Ltd,M21233,"22,285.12",PO 419245 UPGRADE TO AVH BIKE RACKS,S81 7QF,Capital
Food Standards Agency,Food Standards Agency,16/04/2015,ASD support services,Finance Director & Branch,Shared Services Connected Ltd,100000993,"22,009.69",PO 419996 FIXED MONTHLY CHARGES APRIL 2015,HP2 7AH,Admin
Food Standards Agency,Food Standards Agency,01/04/2015,Project Programme expenditure,Operations Local Delivery ,C E F A S,8004663,"21,913.00",PO 417774 & 410792 C5666 PHYTOPLANKTON ANALYSIS 45 SAMPLES @ 222.00 & sANITARY SURVEY FEB 2015,NR33 0HT,Programme
Food Standards Agency,Food Standards Agency,02/04/2015,Rent & management charges - Outside London,Security & Estates,Defra C/o Capita,1002548011,"21,504.80",FOSS HOUSE Q3 RENT - OCCUPATION % INCREASE - ADDITIONAL CHARGES,EC2V 7NQ,Admin
Food Standards Agency,Food Standards Agency,10/04/2015,Meat inspection equipment/consumables,Operational Delivery,Arco UK Ltd,50114792,"21,251.20",PO 417064 FOR GOODS INVOICED UP UNTILL 31/12/2014,HU1 2SJ,Programme
Food Standards Agency,Food Standards Agency,16/04/2015,Carriage of samples,Operational Delivery,Topspeed Couriers Limited,59907,"20,871.00",PO 417507 RIM COLLECTIONS MARCH 2015,WA16 8XN,Programme
Food Standards Agency,Food Standards Agency,09/04/2015,Security,Security & Estates,G4s Integrated Services (Uk) Ltd,M21143,"16,532.64",G4S MONTHLY CONTRACT CHARGES MAR2015,S81 7QF,Admin
Food Standards Agency,Food Standards Agency,09/04/2015,Service charges,Security & Estates,G4s Integrated Services (Uk) Ltd,M21143,"16,346.26",G4S MONTHLY CLEANING CHARGES MAR2015,S81 7QF,Admin
Food Standards Agency,Food Standards Agency,30/04/2015,Project Programme expenditure,Comms Directors Office,Bell Integrated Communications Ltd,1929,"15,516.00",PO 420967 0001133 FSA BRAND GUIDELINES,WC2H 0AU,Programme
Food Standards Agency,Food Standards Agency,16/04/2015,Carriage of samples,Operational Delivery,Topspeed Couriers Limited,59904,"12,724.00",PO 417436 TRICHINELLA COLLECTIONS MAR 2015,WA16 8XN,Programme
Food Standards Agency,Food Standards Agency,24/04/2015,Utilities,Security & Estates,Defra C/o Capita,1002548153,"11,099.63",FOSS HOUSE Q4 UTILITY CHARGES,EC2V 7NQ,Admin
Food Standards Agency,Food Standards Agency,01/04/2015,Project Programme expenditure,Operations Local Delivery ,C E F A S,8004663,"9,990.00",PO 417774 & 410792 C5666 PHYTOPLANKTON ANALYSIS 45 SAMPLES @ 222.00 & sANITARY SURVEY FEB 2015,NR33 0HT,Programme
Food Standards Agency,Food Standards Agency,22/04/2015,Project Programme expenditure,Microbiological Food Safety Branch,University Of Liverpool,21516238,"9,797.20",PO 416864 CLAIM FOR DELIVERABLE 0301,L69 7ZX,Programme
Food Standards Agency,Food Standards Agency,09/04/2015,Service charges,Security & Estates,G4s Integrated Services (Uk) Ltd,M21143,"8,642.15",G4S MONTHLY  MAR2015 VAT on FM & Cleaning,S81 7QF,Admin
Food Standards Agency,Food Standards Agency,16/04/2015,Carriage of samples,Operational Delivery,Topspeed Couriers Limited,59904,"8,111.00",PO 417436 TRICHINELLA COLLECTIONS MAR 2015,WA16 8XN,Programme
Food Standards Agency,Food Standards Agency,30/04/2015,Project Programme expenditure,Comms Directors Office,Bell Integrated Communications Ltd,1929,"7,824.00",PO 420967 0001133 FSA BRAND GUIDELINES,WC2H 0AU,Programme
Food Standards Agency,Food Standards Agency,02/04/2015,Utilities,Security & Estates,Defra C/o Capita,1002547467,"6,827.92",FOSS HOUSE Q3 UTILITY CHARGES,EC2V 7NQ,Admin
Food Standards Agency,Food Standards Agency,08/04/2015,Project Programme expenditure,Consumer Protection & Commercial Support,R A B Consultants Ltd,20150761,"6,421.60",PO 419228 REF 655B INCIDENT RESPONSE CAPABILITY & EMERGENCY EXERCISE PROGRAMME MARCH 2015,WS13 6QG,Programme
Food Standards Agency,Food Standards Agency,02/04/2015,Rates/contrib in lieu of rates,Security & Estates,Defra C/o Capita,1002548011,"6,203.34",FOSS HOUSE Q3 RENT - OCCUPATION % INCREASE - ADDITIONAL CHARGES,EC2V 7NQ,Admin
Food Standards Agency,Food Standards Agency,09/04/2015,Laundry,Operational Delivery,Apparelmaster UK Ltd,60010,"5,735.35",PO 417042 REGION 546 NEW CONTRACT 22/02/15 TO 28/03/15,PR2 9ZD,Programme
Food Standards Agency,Food Standards Agency,24/04/2015,Project Programme expenditure,Food Production Branch,Hutchinson Scientific Ltd,HSS1102,"5,708.00","PO 421718 TO MARCH 2011 HOSTING, MAINTENANCE, SERVICE AND DEVELOPMENT",DD4 7RH,Programme
Food Standards Agency,Food Standards Agency,20/04/2015,Utilities,Security & Estates,E D F Energy,000000207013,"5,214.35",VAT ON EDF INV 207013 - AVH ELECTRICITY CHARGES - MARCH 2015,EX1 3UT,Admin
Food Standards Agency,Food Standards Agency,30/04/2015,Meat inspection equipment/consumables,Operational Delivery,Arco UK Ltd,50114135,"5,000.00",PO 417064 FOR GOODS INVOICED UP UNTIL 30.11.2014,HU1 2SJ,Programme
Food Standards Agency,Food Standards Agency,20/04/2015,Meat inspection equipment/consumables,Operational Delivery,Arco UK Ltd,50115452,"4,908.24",PO 417064 FOR GOODS INVOICED UP UNTIL 31.01.15,HU1 2SJ,Programme
Food Standards Agency,Food Standards Agency,02/04/2015,Fixed Assets Additions,Security & Estates,G4s Integrated Services (Uk) Ltd,M21233,"4,457.02",PO 419245 UPGRADE TO AVH BIKE RACKS VAT,S81 7QF,Capital
Food Standards Agency,Food Standards Agency,16/04/2015,ASD support services,Finance Director & Branch,Shared Services Connected Ltd,100000993,"4,401.94",PO 419996 FIXED MONTHLY CHARGES APRIL 2015,HP2 7AH,Admin
Food Standards Agency,Food Standards Agency,10/04/2015,Meat inspection equipment/consumables,Operational Delivery,Arco UK Ltd,50114792,"4,250.24",PO 417064 FOR GOODS INVOICED UP UNTILL 31/12/2014,HU1 2SJ,Programme
Food Standards Agency,Food Standards Agency,28/04/2015,Travel UK ,Operations Assurance,Redfern Travel Ltd,80,"3,493.90",REDFERN TRAVEL INVOICE WEEK 16,BD1 3AZ,Programme
Food Standards Agency,Food Standards Agency,09/04/2015,Security,Security & Estates,G4s Integrated Services (Uk) Ltd,M21143,"3,306.53",G4S MONTHLY  MAR2015 VAT ON SECURITY,S81 7QF,Admin
Food Standards Agency,Food Standards Agency,30/04/2015,Meat inspection equipment/consumables,Operational Delivery,Arco UK Ltd,50114135,"2,945.95",PO 417064 FOR GOODS INVOICED UP UNTIL 30.11.2014,HU1 2SJ,Programme
Food Standards Agency,Food Standards Agency,08/04/2015,Subsistence UK,Operational Delivery,Redfern Travel Ltd,103051,"2,914.96",REDFERN TRAVEL INVOICE WK 13,BD1 3AZ,Programme
Food Standards Agency,Food Standards Agency,08/04/2015,Subsistence UK,Operational Delivery,Redfern Travel Ltd,101288,"2,711.93",REDFERN E INVOICE WK 9,BD1 3AZ,Programme
Food Standards Agency,Food Standards Agency,08/04/2015,Subsistence UK,Operations Assurance,Redfern Travel Ltd,103051,"2,520.81",REDFERN TRAVEL INVOICE WK 13,BD1 3AZ,Programme
Food Standards Agency,Food Standards Agency,02/04/2015,Travel UK ,Operational Delivery,Redfern Travel Ltd,102812,"2,499.82",Redfern Travel Invoice wk 12,BD1 3AZ,Programme
Food Standards Agency,Food Standards Agency,02/04/2015,Travel UK ,Planning and Performance,Redfern Travel Ltd,102812,"2,481.30",Redfern Travel Invoice wk 12,BD1 3AZ,Admin
Food Standards Agency,Food Standards Agency,24/04/2015,Utilities,Security & Estates,Defra C/o Capita,1002548153,"2,375.68",FOSS HOUSE Q4 UTILITY CHARGES,EC2V 7NQ,Admin
Food Standards Agency,Food Standards Agency,08/04/2015,Travel UK ,Operational Delivery,Redfern Travel Ltd,101288,"2,358.83",REDFERN E INVOICE WK 9,BD1 3AZ,Programme
Food Standards Agency,Food Standards Agency,02/04/2015,Fixed Assets Additions,Security & Estates,G4s Integrated Services (Uk) Ltd,M21233,"2,002.00",PO 419245 UPGRADE TO AVH BIKE RACKS,S81 7QF,Capital
Food Standards Agency,Food Standards Agency,08/04/2015,Travel UK ,Operations Assurance,Redfern Travel Ltd,101288,"1,984.37",REDFERN E INVOICE WK 9,BD1 3AZ,Programme
Food Standards Agency,Food Standards Agency,08/04/2015,Travel UK ,Operational Delivery,Redfern Travel Ltd,103051,"1,979.29",REDFERN TRAVEL INVOICE WK 13,BD1 3AZ,Programme
Food Standards Agency,Food Standards Agency,08/04/2015,Subsistence UK,Operations Assurance,Redfern Travel Ltd,101288,"1,914.56",REDFERN E INVOICE WK 9,BD1 3AZ,Programme
Food Standards Agency,Food Standards Agency,28/04/2015,Travel UK ,Operational Delivery,Redfern Travel Ltd,80,"1,888.19",REDFERN TRAVEL INVOICE WEEK 16,BD1 3AZ,Programme
Food Standards Agency,Food Standards Agency,02/04/2015,Utilities,Security & Estates,Defra C/o Capita,1002548011,"1,852.59",FOSS HOUSE Q3 UTILITY CHARGES - OCCUPATION % INCREASE - ADDITIONAL CHARGES,EC2V 7NQ,Admin
Food Standards Agency,Food Standards Agency,02/04/2015,Travel UK ,Finance Director & Branch,Redfern Travel Ltd,102812,"1,747.08",Redfern Travel Invoice wk 12,BD1 3AZ,Admin
Food Standards Agency,Food Standards Agency,02/04/2015,Travel UK ,Operations Assurance,Redfern Travel Ltd,102812,"1,637.58",Redfern Travel Invoice wk 12,BD1 3AZ,Programme
Food Standards Agency,Food Standards Agency,08/04/2015,Travel UK ,Non Meat Field Ops,Redfern Travel Ltd,101288,"1,630.93",REDFERN E INVOICE WK 9,BD1 3AZ,Programme
Food Standards Agency,Food Standards Agency,28/04/2015,Travel UK ,HR,Redfern Travel Ltd,80,"1,598.43",REDFERN TRAVEL INVOICE WEEK 16,BD1 3AZ,Admin
Food Standards Agency,Food Standards Agency,28/04/2015,Travel UK ,Finance Director & Branch,Redfern Travel Ltd,80,"1,541.97",REDFERN TRAVEL INVOICE WEEK 16,BD1 3AZ,Admin
Food Standards Agency,Food Standards Agency,08/04/2015,Travel UK ,Operations Local Delivery ,Redfern Travel Ltd,103051,"1,538.50",REDFERN TRAVEL INVOICE WK 13,BD1 3AZ,Admin
Food Standards Agency,Food Standards Agency,28/04/2015,Travel UK ,Planning and Performance,Redfern Travel Ltd,80,"1,527.68",REDFERN TRAVEL INVOICE WEEK 16,BD1 3AZ,Admin
Food Standards Agency,Food Standards Agency,08/04/2015,Travel UK ,Planning and Performance,Redfern Travel Ltd,101288,"1,510.89",REDFERN E INVOICE WK 9,BD1 3AZ,Admin
Food Standards Agency,Food Standards Agency,28/04/2015,Subsistence UK,Operations Assurance,Redfern Travel Ltd,80,"1,505.50",REDFERN TRAVEL INVOICE WEEK 16,BD1 3AZ,Programme
Food Standards Agency,Food Standards Agency,08/04/2015,Subsistence UK,Non Meat Field Ops,Redfern Travel Ltd,101288,"1,402.41",REDFERN E INVOICE WK 9,BD1 3AZ,Programme
Food Standards Agency,Food Standards Agency,08/04/2015,Subsistence UK,Non Meat Field Ops,Redfern Travel Ltd,103051,"1,384.80",REDFERN TRAVEL INVOICE WK 13,BD1 3AZ,Programme
Food Standards Agency,Food Standards Agency,08/04/2015,Travel UK ,Planning and Performance,Redfern Travel Ltd,103051,"1,284.96",REDFERN TRAVEL INVOICE WK 13,BD1 3AZ,Admin
Food Standards Agency,Food Standards Agency,08/04/2015,Subsistence UK,Planning and Performance,Redfern Travel Ltd,101288,"1,259.90",REDFERN E INVOICE WK 9,BD1 3AZ,Admin
Food Standards Agency,Food Standards Agency,08/04/2015,Travel UK ,Consumer Protection & Commercial Support,Redfern Travel Ltd,101288,"1,240.32",REDFERN E INVOICE WK 9,BD1 3AZ,Admin
Food Standards Agency,Food Standards Agency,28/04/2015,Travel UK ,Operations Local Delivery ,Redfern Travel Ltd,80,"1,119.81",REDFERN TRAVEL INVOICE WEEK 16,BD1 3AZ,Admin
Food Standards Agency,Food Standards Agency,02/04/2015,Subsistence UK,Planning and Performance,Redfern Travel Ltd,102812,"1,074.65",Redfern Travel Invoice wk 12,BD1 3AZ,Admin
Food Standards Agency,Food Standards Agency,28/04/2015,Subsistence UK,Area 5 South West England - Cluster 57,Redfern Travel Ltd,80,"1,032.90",REDFERN TRAVEL INVOICE WEEK 16,BD1 3AZ,Programme
Food Standards Agency,Food Standards Agency,08/04/2015,Subsistence UK,Consumer Protection & Commercial Support,Redfern Travel Ltd,101288,"1,002.00",REDFERN E INVOICE WK 9,BD1 3AZ,Admin
Food Standards Agency,Food Standards Agency,08/04/2015,Travel UK ,IT Information & Knowledge Management,Redfern Travel Ltd,103051,985.43,REDFERN TRAVEL INVOICE WK 13,BD1 3AZ,Admin
Food Standards Agency,Food Standards Agency,08/04/2015,Travel UK ,Operations Assurance,Redfern Travel Ltd,103051,959.79,REDFERN TRAVEL INVOICE WK 13,BD1 3AZ,Programme
Food Standards Agency,Food Standards Agency,28/04/2015,Subsistence UK,Operations Local Delivery ,Redfern Travel Ltd,80,856.10,REDFERN TRAVEL INVOICE WEEK 16,BD1 3AZ,Admin
Food Standards Agency,Food Standards Agency,02/04/2015,Subsistence UK,Operational Delivery,Redfern Travel Ltd,102812,843.33,Redfern Travel Invoice wk 12,BD1 3AZ,Programme
Food Standards Agency,Food Standards Agency,02/04/2015,Travel UK ,Operations Local Delivery ,Redfern Travel Ltd,102812,821.37,Redfern Travel Invoice wk 12,BD1 3AZ,Admin
Food Standards Agency,Food Standards Agency,08/04/2015,Travel UK ,Operations Assurance - Admin,Redfern Travel Ltd,103051,819.09,REDFERN TRAVEL INVOICE WK 13,BD1 3AZ,Admin
Food Standards Agency,Food Standards Agency,08/04/2015,Travel UK ,Finance Director & Branch,Redfern Travel Ltd,103051,801.54,REDFERN TRAVEL INVOICE WK 13,BD1 3AZ,Admin
Food Standards Agency,Food Standards Agency,28/04/2015,Subsistence UK,Area 1 Scotland - Cluster 12,Redfern Travel Ltd,80,775.41,REDFERN TRAVEL INVOICE WEEK 16,BD1 3AZ,Programme
Food Standards Agency,Food Standards Agency,02/04/2015,Travel UK ,Non Meat Field Ops,Redfern Travel Ltd,102812,743.30,Redfern Travel Invoice wk 12,BD1 3AZ,Programme
Food Standards Agency,Food Standards Agency,08/04/2015,Subsistence UK,Operations Assurance - Admin,Redfern Travel Ltd,103051,742.00,REDFERN TRAVEL INVOICE WK 13,BD1 3AZ,Admin
Food Standards Agency,Food Standards Agency,02/04/2015,Subsistence UK,Operations Assurance,Redfern Travel Ltd,102812,716.38,Redfern Travel Invoice wk 12,BD1 3AZ,Programme
Food Standards Agency,Food Standards Agency,28/04/2015,Travel UK ,Operations Assurance - Admin,Redfern Travel Ltd,80,688.55,REDFERN TRAVEL INVOICE WEEK 16,BD1 3AZ,Admin
Food Standards Agency,Food Standards Agency,08/04/2015,Travel UK ,Operations Local Delivery ,Redfern Travel Ltd,101288,666.29,REDFERN E INVOICE WK 9,BD1 3AZ,Admin
Food Standards Agency,Food Standards Agency,02/04/2015,Subsistence UK,Non Meat Field Ops,Redfern Travel Ltd,102812,659.24,Redfern Travel Invoice wk 12,BD1 3AZ,Programme
Food Standards Agency,Food Standards Agency,08/04/2015,Travel UK ,Contaminants HoD,Redfern Travel Ltd,101288,658.49,REDFERN E INVOICE WK 9,BD1 3AZ,Admin
Food Standards Agency,Food Standards Agency,08/04/2015,Travel UK ,HR,Redfern Travel Ltd,101288,619.02,REDFERN E INVOICE WK 9,BD1 3AZ,Admin
Food Standards Agency,Food Standards Agency,08/04/2015,Travel UK ,Consumer Protection & Commercial Support,Redfern Travel Ltd,103051,609.77,REDFERN TRAVEL INVOICE WK 13,BD1 3AZ,Admin
Food Standards Agency,Food Standards Agency,30/04/2015,Meat inspection equipment/consumables,Operational Delivery,Arco UK Ltd,50114135,589.19,PO 417064 FOR GOODS INVOICED UP UNTIL 30.11.2014,HU1 2SJ,Programme
Food Standards Agency,Food Standards Agency,08/04/2015,Subsistence UK,Better Regulations & Sustainable Development,Redfern Travel Ltd,103051,577.80,REDFERN TRAVEL INVOICE WK 13,BD1 3AZ,Admin
Food Standards Agency,Food Standards Agency,28/04/2015,Subsistence UK,Operational Delivery,Redfern Travel Ltd,80,561.65,REDFERN TRAVEL INVOICE WEEK 16,BD1 3AZ,Programme
Food Standards Agency,Food Standards Agency,08/04/2015,Subsistence UK,Operations Local Delivery ,Redfern Travel Ltd,103051,556.79,REDFERN TRAVEL INVOICE WK 13,BD1 3AZ,Admin
Food Standards Agency,Food Standards Agency,28/04/2015,Travel UK ,Better Regulations & Sustainable Development,Redfern Travel Ltd,80,551.60,REDFERN TRAVEL INVOICE WEEK 16,BD1 3AZ,Admin
Food Standards Agency,Food Standards Agency,28/04/2015,Travel UK ,Area 5 South West England - Cluster 54,Redfern Travel Ltd,80,539.01,REDFERN TRAVEL INVOICE WEEK 16,BD1 3AZ,Programme
Food Standards Agency,Food Standards Agency,08/04/2015,Travel UK ,Finance Director & Branch,Redfern Travel Ltd,101288,536.27,REDFERN E INVOICE WK 9,BD1 3AZ,Admin
Food Standards Agency,Food Standards Agency,02/04/2015,Subsistence UK,Operations Assurance - Admin,Redfern Travel Ltd,102812,535.42,Redfern Travel Invoice wk 12,BD1 3AZ,Admin
Food Standards Agency,Food Standards Agency,08/04/2015,Travel UK ,Non Meat Field Ops,Redfern Travel Ltd,103051,525.22,REDFERN TRAVEL INVOICE WK 13,BD1 3AZ,Programme
Food Standards Agency,Food Standards Agency,08/04/2015,Travel UK ,EU Regulatory Reform Branch,Redfern Travel Ltd,101288,519.42,REDFERN E INVOICE WK 9,BD1 3AZ,Admin
Food Standards Agency,Food Standards Agency,02/04/2015,Subsistence UK,IT Service Delivery,Redfern Travel Ltd,102812,515.88,REDFERN,BD1 3AZ,Admin
Food Standards Agency,Food Standards Agency,02/04/2015,Travel UK ,IT Service Delivery,Redfern Travel Ltd,102812,507.65,REDFERN,BD1 3AZ,Admin
Food Standards Agency,Food Standards Agency,08/04/2015,Travel UK ,Directorate Support Unit,Redfern Travel Ltd,101288,502.06,REDFERN E INVOICE WK 9,BD1 3AZ,Admin
Food Standards Agency,Food Standards Agency,08/04/2015,Subsistence UK,Operations Local Delivery ,Redfern Travel Ltd,101288,492.12,REDFERN E INVOICE WK 9,BD1 3AZ,Admin
Food Standards Agency,Food Standards Agency,08/04/2015,Subsistence UK,Directorate Support Unit,Redfern Travel Ltd,103051,482.80,REDFERN TRAVEL INVOICE WK 13,BD1 3AZ,Admin
Food Standards Agency,Food Standards Agency,08/04/2015,Subsistence - EC,European & International Strategy,Redfern Travel Ltd,103051,481.49,REDFERN TRAVEL INVOICE WK 13,BD1 3AZ,Admin
Food Standards Agency,Food Standards Agency,08/04/2015,Subsistence UK,Planning and Performance,Redfern Travel Ltd,103051,476.55,REDFERN TRAVEL INVOICE WK 13,BD1 3AZ,Admin
Food Standards Agency,Food Standards Agency,28/04/2015,Subsistence UK,Planning and Performance,Redfern Travel Ltd,80,470.15,REDFERN TRAVEL INVOICE WEEK 16,BD1 3AZ,Admin
Food Standards Agency,Food Standards Agency,08/04/2015,Travel UK ,Chief Scientist,Redfern Travel Ltd,103051,462.79,REDFERN TRAVEL INVOICE WK 13,BD1 3AZ,Admin
Food Standards Agency,Food Standards Agency,08/04/2015,Travel UK ,Area 2 Wales - Cluster 22,Redfern Travel Ltd,101288,443.45,REDFERN E INVOICE WK 9,BD1 3AZ,Programme
Food Standards Agency,Food Standards Agency,28/04/2015,Travel UK ,Area 6 South East England - Cluster 61,Redfern Travel Ltd,80,442.57,REDFERN TRAVEL INVOICE WEEK 16,BD1 3AZ,Programme
Food Standards Agency,Food Standards Agency,28/04/2015,Travel UK ,Legal Branch A,Redfern Travel Ltd,80,437.02,REDFERN TRAVEL INVOICE WEEK 16,BD1 3AZ,Admin
Food Standards Agency,Food Standards Agency,02/04/2015,Subsistence UK,Directorate Support Unit,Redfern Travel Ltd,102812,436.75,Redfern Travel Invoice wk 12,BD1 3AZ,Admin
Food Standards Agency,Food Standards Agency,28/04/2015,Travel UK ,Additives,Redfern Travel Ltd,80,423.72,REDFERN TRAVEL INVOICE WEEK 16,BD1 3AZ,Admin
Food Standards Agency,Food Standards Agency,08/04/2015,Subsistence UK,Finance Director & Branch,Redfern Travel Ltd,101288,421.10,REDFERN E INVOICE WK 9,BD1 3AZ,Admin
Food Standards Agency,Food Standards Agency,08/04/2015,Travel UK ,Directorate Support Unit,Redfern Travel Ltd,103051,413.60,REDFERN TRAVEL INVOICE WK 13,BD1 3AZ,Admin
Food Standards Agency,Food Standards Agency,08/04/2015,Travel UK ,Legal Branch A,Redfern Travel Ltd,101288,410.80,REDFERN E INVOICE WK 9,BD1 3AZ,Admin
Food Standards Agency,Food Standards Agency,28/04/2015,Travel UK ,Comms Directors Office,Redfern Travel Ltd,80,406.96,REDFERN TRAVEL INVOICE WEEK 16,BD1 3AZ,Admin
Food Standards Agency,Food Standards Agency,08/04/2015,Travel UK ,Area 5 South West England - Cluster 54,Redfern Travel Ltd,101288,406.85,REDFERN E INVOICE WK 9,BD1 3AZ,Programme
Food Standards Agency,Food Standards Agency,08/04/2015,Subsistence UK,Consumer Protection & Commercial Support,Redfern Travel Ltd,103051,406.66,REDFERN TRAVEL INVOICE WK 13,BD1 3AZ,Admin
Food Standards Agency,Food Standards Agency,08/04/2015,Travel UK ,HR,Redfern Travel Ltd,103051,403.78,REDFERN TRAVEL INVOICE WK 13,BD1 3AZ,Admin
Food Standards Agency,Food Standards Agency,02/04/2015,Fixed Assets Additions,Security & Estates,G4s Integrated Services (Uk) Ltd,M21233,400.40,PO 419245 UPGRADE TO AVH BIKE RACKS VAT,S81 7QF,Capital
Food Standards Agency,Food Standards Agency,28/04/2015,Travel UK ,Chief Scientist,Redfern Travel Ltd,80,390.84,REDFERN TRAVEL INVOICE WEEK 16,BD1 3AZ,Admin
Food Standards Agency,Food Standards Agency,08/04/2015,Subsistence UK,Chair & Deputy Chair,Redfern Travel Ltd,101288,388.25,REDFERN E INVOICE WK 9,BD1 3AZ,Admin
Food Standards Agency,Food Standards Agency,08/04/2015,Travel UK ,Internal Audit,Redfern Travel Ltd,101288,386.42,REDFERN E INVOICE WK 9,BD1 3AZ,Admin
Food Standards Agency,Food Standards Agency,02/04/2015,Subsistence UK,Operations Local Delivery ,Redfern Travel Ltd,102812,383.74,Redfern Travel Invoice wk 12,BD1 3AZ,Admin
Food Standards Agency,Food Standards Agency,02/04/2015,Travel UK ,Area 6 South East England - Cluster 64,Redfern Travel Ltd,102812,383.59,Redfern Travel Invoice wk 12,BD1 3AZ,Programme
Food Standards Agency,Food Standards Agency,08/04/2015,Subsistence UK,Area 5 South West England - Cluster 57,Redfern Travel Ltd,101288,381.25,REDFERN E INVOICE WK 9,BD1 3AZ,Programme
Food Standards Agency,Food Standards Agency,28/04/2015,Subsistence UK,Non Meat Field Ops,Redfern Travel Ltd,80,379.20,REDFERN TRAVEL INVOICE WEEK 16,BD1 3AZ,Programme
Food Standards Agency,Food Standards Agency,28/04/2015,Subsistence UK,Legal Branch A,Redfern Travel Ltd,80,378.20,REDFERN TRAVEL INVOICE WEEK 16,BD1 3AZ,Admin
Food Standards Agency,Food Standards Agency,02/04/2015,Subsistence UK,Better Regulations & Sustainable Development,Redfern Travel Ltd,102812,376.40,Redfern Travel Invoice wk 12,BD1 3AZ,Admin
Food Standards Agency,Food Standards Agency,08/04/2015,Travel UK ,Area 5 South West England - Cluster 57,Redfern Travel Ltd,101288,361.86,REDFERN E INVOICE WK 9,BD1 3AZ,Programme
Food Standards Agency,Food Standards Agency,28/04/2015,Travel UK ,Area 2 Wales - Cluster 23,Redfern Travel Ltd,80,360.02,REDFERN TRAVEL INVOICE WEEK 16,BD1 3AZ,Programme
Food Standards Agency,Food Standards Agency,02/04/2015,Travel UK ,Internal Audit,Redfern Travel Ltd,102812,359.81,Redfern Travel Invoice wk 12,BD1 3AZ,Admin
Food Standards Agency,Food Standards Agency,28/04/2015,Subsistence - EC,Official Feed & Foods Controls Policy Unit,Redfern Travel Ltd,80,359.45,REDFERN TRAVEL INVOICE WEEK 16,BD1 3AZ,Admin
Food Standards Agency,Food Standards Agency,08/04/2015,Travel UK ,Area 5 South West England - Cluster 53,Redfern Travel Ltd,101288,349.62,REDFERN E INVOICE WK 9,BD1 3AZ,Programme
Food Standards Agency,Food Standards Agency,08/04/2015,Travel UK ,Area 2 Wales - Cluster 21,Redfern Travel Ltd,101288,349.55,REDFERN E INVOICE WK 9,BD1 3AZ,Programme
Food Standards Agency,Food Standards Agency,08/04/2015,Travel UK ,Approvals & Veterinary Advice,Redfern Travel Ltd,101288,346.96,REDFERN E INVOICE WK 9,BD1 3AZ,Programme
Food Standards Agency,Food Standards Agency,28/04/2015,Subsistence UK,Microbiological Food Safety Branch,Redfern Travel Ltd,80,341.40,REDFERN TRAVEL INVOICE WEEK 16,BD1 3AZ,Admin
Food Standards Agency,Food Standards Agency,08/04/2015,Subsistence UK,Area 5 South West England - Cluster 52,Redfern Travel Ltd,101288,338.80,REDFERN E INVOICE WK 9,BD1 3AZ,Programme
Food Standards Agency,Food Standards Agency,02/04/2015,Travel UK ,Area 6 South East England - Cluster 63,Redfern Travel Ltd,102812,338.66,Redfern Travel Invoice wk 12,BD1 3AZ,Programme
Food Standards Agency,Food Standards Agency,08/04/2015,Subsistence UK,Area 2 Wales - Cluster 22,Redfern Travel Ltd,103051,337.30,REDFERN TRAVEL INVOICE WK 13,BD1 3AZ,Programme
Food Standards Agency,Food Standards Agency,08/04/2015,Travel UK ,IT Information & Knowledge Management,Redfern Travel Ltd,101288,333.15,REDFERN E INVOICE WK 9,BD1 3AZ,Admin
Food Standards Agency,Food Standards Agency,08/04/2015,Travel UK ,Area 5 South West England - Cluster 54,Redfern Travel Ltd,103051,329.51,REDFERN TRAVEL INVOICE WK 13,BD1 3AZ,Programme
Food Standards Agency,Food Standards Agency,28/04/2015,Travel UK ,Area 5 South West England - Cluster 51,Redfern Travel Ltd,80,328.64,REDFERN TRAVEL INVOICE WEEK 16,BD1 3AZ,Programme
Food Standards Agency,Food Standards Agency,02/04/2015,Subsistence UK,Area 5 South West England - Cluster 57,Redfern Travel Ltd,102812,326.20,Redfern Travel Invoice wk 12,BD1 3AZ,Programme
Food Standards Agency,Food Standards Agency,08/04/2015,Travel UK ,Better Regulations & Sustainable Development,Redfern Travel Ltd,101288,325.23,REDFERN E INVOICE WK 9,BD1 3AZ,Admin
Food Standards Agency,Food Standards Agency,02/04/2015,Travel UK ,Area 6 South East England - Cluster 62,Redfern Travel Ltd,102812,324.63,Redfern Travel Invoice wk 12,BD1 3AZ,Programme
Food Standards Agency,Food Standards Agency,02/04/2015,Travel UK ,Chair & Deputy Chair,Redfern Travel Ltd,102812,313.82,Redfern Travel Invoice wk 12,BD1 3AZ,Admin
Food Standards Agency,Food Standards Agency,08/04/2015,Subsistence UK,Area 5 South West England - Cluster 53,Redfern Travel Ltd,101288,304.75,REDFERN E INVOICE WK 9,BD1 3AZ,Programme
Food Standards Agency,Food Standards Agency,08/04/2015,Travel UK ,Animal Feed Branch,Redfern Travel Ltd,101288,304.42,REDFERN E INVOICE WK 9,BD1 3AZ,Admin
Food Standards Agency,Food Standards Agency,28/04/2015,Travel UK ,Area 6 South East England - Cluster 65,Redfern Travel Ltd,80,304.33,REDFERN TRAVEL INVOICE WEEK 16,BD1 3AZ,Programme
Food Standards Agency,Food Standards Agency,02/04/2015,Travel UK ,Legal Branch A,Redfern Travel Ltd,102812,303.89,Redfern Travel Invoice wk 12,BD1 3AZ,Admin
Food Standards Agency,Food Standards Agency,08/04/2015,Subsistence UK,HR,Redfern Travel Ltd,103051,302.65,REDFERN TRAVEL INVOICE WK 13,BD1 3AZ,Admin
Food Standards Agency,Food Standards Agency,08/04/2015,Travel UK ,Procurement,Redfern Travel Ltd,101288,290.27,REDFERN E INVOICE WK 9,BD1 3AZ,Admin
Food Standards Agency,Food Standards Agency,08/04/2015,Travel UK ,Area 2 Wales - Cluster 23,Redfern Travel Ltd,101288,286.92,REDFERN E INVOICE WK 9,BD1 3AZ,Programme
Food Standards Agency,Food Standards Agency,28/04/2015,Subsistence UK,Comms Directors Office,Redfern Travel Ltd,80,286.20,REDFERN TRAVEL INVOICE WEEK 16,BD1 3AZ,Admin
Food Standards Agency,Food Standards Agency,28/04/2015,Subsistence UK,Area 6 South East England - Cluster 65,Redfern Travel Ltd,80,284.40,REDFERN TRAVEL INVOICE WEEK 16,BD1 3AZ,Programme
Food Standards Agency,Food Standards Agency,02/04/2015,Subsistence UK,Area 5 South West England - Cluster 52,Redfern Travel Ltd,102812,283.40,Redfern Travel Invoice wk 12,BD1 3AZ,Programme
Food Standards Agency,Food Standards Agency,28/04/2015,Subsistence UK,Chief Executive & Private Office,Redfern Travel Ltd,80,283.40,REDFERN TRAVEL INVOICE WEEK 16,BD1 3AZ,Admin
Food Standards Agency,Food Standards Agency,28/04/2015,Travel UK ,Contaminants HoD,Redfern Travel Ltd,80,281.21,REDFERN TRAVEL INVOICE WEEK 16,BD1 3AZ,Admin
Food Standards Agency,Food Standards Agency,08/04/2015,Subsistence UK,HR,Redfern Travel Ltd,101288,278.74,REDFERN E INVOICE WK 9,BD1 3AZ,Admin
Food Standards Agency,Food Standards Agency,08/04/2015,Subsistence UK,Area 3 North West England - Cluster 31,Redfern Travel Ltd,103051,276.80,REDFERN TRAVEL INVOICE WK 13,BD1 3AZ,Programme
Food Standards Agency,Food Standards Agency,08/04/2015,Travel UK ,Contaminants Policy & Strategy Unit,Redfern Travel Ltd,101288,276.76,REDFERN E INVOICE WK 9,BD1 3AZ,Admin
Food Standards Agency,Food Standards Agency,08/04/2015,Subsistence - EC,Chief Scientist,Redfern Travel Ltd,103051,274.40,REDFERN TRAVEL INVOICE WK 13,BD1 3AZ,Admin
Food Standards Agency,Food Standards Agency,02/04/2015,Travel UK ,Directorate Support Unit,Redfern Travel Ltd,102812,273.68,Redfern Travel Invoice wk 12,BD1 3AZ,Admin
Food Standards Agency,Food Standards Agency,08/04/2015,Subsistence UK,Area 5 South West England - Cluster 57,Redfern Travel Ltd,103051,273.20,REDFERN TRAVEL INVOICE WK 13,BD1 3AZ,Programme
Food Standards Agency,Food Standards Agency,28/04/2015,Subsistence - EC,Analysis & Research Branch,Redfern Travel Ltd,80,272.06,REDFERN TRAVEL INVOICE WEEK 16,BD1 3AZ,Admin
Food Standards Agency,Food Standards Agency,08/04/2015,Travel UK ,Food Production Branch,Redfern Travel Ltd,101288,265.87,REDFERN E INVOICE WK 9,BD1 3AZ,Admin
Food Standards Agency,Food Standards Agency,08/04/2015,Subsistence UK,Legal Branch A,Redfern Travel Ltd,103051,265.60,REDFERN TRAVEL INVOICE WK 13,BD1 3AZ,Admin
Food Standards Agency,Food Standards Agency,08/04/2015,Subsistence UK,Better Regulations & Sustainable Development,Redfern Travel Ltd,101288,260.05,REDFERN E INVOICE WK 9,BD1 3AZ,Admin
Food Standards Agency,Food Standards Agency,08/04/2015,Subsistence UK,Area 5 South West England - Cluster 51,Redfern Travel Ltd,101288,259.80,REDFERN E INVOICE WK 9,BD1 3AZ,Programme
Food Standards Agency,Food Standards Agency,08/04/2015,Travel UK ,European & International Strategy,Redfern Travel Ltd,101288,259.71,REDFERN E INVOICE WK 9,BD1 3AZ,Admin
Food Standards Agency,Food Standards Agency,28/04/2015,Travel UK ,Area 2 Wales - Cluster 22,Redfern Travel Ltd,80,259.60,REDFERN TRAVEL INVOICE WEEK 16,BD1 3AZ,Programme
Food Standards Agency,Food Standards Agency,02/04/2015,Travel UK ,Area 2 Wales - Cluster 23,Redfern Travel Ltd,102812,258.49,Redfern Travel Invoice wk 12,BD1 3AZ,Programme
Food Standards Agency,Food Standards Agency,08/04/2015,Subsistence UK,IT Information & Knowledge Management,Redfern Travel Ltd,101288,257.85,REDFERN E INVOICE WK 9,BD1 3AZ,Admin
Food Standards Agency,Food Standards Agency,08/04/2015,Travel UK ,Area 3 North West England - Cluster 34,Redfern Travel Ltd,101288,257.77,REDFERN E INVOICE WK 9,BD1 3AZ,Programme
Food Standards Agency,Food Standards Agency,08/04/2015,Subsistence UK,Official Feed & Foods Controls Policy Unit,Redfern Travel Ltd,103051,253.69,REDFERN TRAVEL INVOICE WK 13,BD1 3AZ,Admin
Food Standards Agency,Food Standards Agency,08/04/2015,Travel UK ,Area 2 Wales - Cluster 23,Redfern Travel Ltd,103051,253.57,REDFERN TRAVEL INVOICE WK 13,BD1 3AZ,Programme
Food Standards Agency,Food Standards Agency,08/04/2015,Travel UK ,Chair & Deputy Chair,Redfern Travel Ltd,103051,252.24,REDFERN TRAVEL INVOICE WK 13,BD1 3AZ,Admin
Food Standards Agency,Food Standards Agency,28/04/2015,Subsistence UK,HR,Redfern Travel Ltd,80,252.20,REDFERN TRAVEL INVOICE WEEK 16,BD1 3AZ,Admin
Food Standards Agency,Food Standards Agency,28/04/2015,Travel UK ,Non Meat Field Ops,Redfern Travel Ltd,80,251.92,REDFERN TRAVEL INVOICE WEEK 16,BD1 3AZ,Programme
Food Standards Agency,Food Standards Agency,08/04/2015,Subsistence UK,Legal Branch A,Redfern Travel Ltd,101288,251.70,REDFERN E INVOICE WK 9,BD1 3AZ,Admin
Food Standards Agency,Food Standards Agency,08/04/2015,Travel UK ,Area 5 South West England - Cluster 56,Redfern Travel Ltd,101288,250.97,REDFERN E INVOICE WK 9,BD1 3AZ,Programme
Food Standards Agency,Food Standards Agency,08/04/2015,Subsistence - EC,Additives,Redfern Travel Ltd,103051,250.94,REDFERN TRAVEL INVOICE WK 13,BD1 3AZ,Admin
Food Standards Agency,Food Standards Agency,08/04/2015,Subsistence UK,Security & Estates,Redfern Travel Ltd,101288,250.80,Consolidated Invoice - Travel Costs for SES Staff - April 2015,BD1 3AZ,Admin
Food Standards Agency,Food Standards Agency,02/04/2015,Travel UK ,Consumer Protection & Commercial Support,Redfern Travel Ltd,102812,250.11,Redfern Travel Invoice wk 12,BD1 3AZ,Admin
Food Standards Agency,Food Standards Agency,08/04/2015,Subsistence UK,Operations Assurance - Admin,Redfern Travel Ltd,101288,248.80,REDFERN E INVOICE WK 9,BD1 3AZ,Admin
Food Standards Agency,Food Standards Agency,28/04/2015,Travel UK ,Area 3 North West England - Cluster 34,Redfern Travel Ltd,80,244.56,REDFERN TRAVEL INVOICE WEEK 16,BD1 3AZ,Programme
Food Standards Agency,Food Standards Agency,28/04/2015,Subsistence UK,Animal Feed Branch,Redfern Travel Ltd,80,243.40,REDFERN TRAVEL INVOICE WEEK 16,BD1 3AZ,Admin
Food Standards Agency,Food Standards Agency,08/04/2015,Subsistence - EC,Area 5 South West England - Cluster 57,Redfern Travel Ltd,101288,241.40,REDFERN E INVOICE WK 9,BD1 3AZ,Programme
Food Standards Agency,Food Standards Agency,08/04/2015,Subsistence UK,Area 5 South West England - Cluster 54,Redfern Travel Ltd,103051,238.80,REDFERN TRAVEL INVOICE WK 13,BD1 3AZ,Programme
Food Standards Agency,Food Standards Agency,28/04/2015,Subsistence UK,Internal Audit,Redfern Travel Ltd,80,238.60,REDFERN TRAVEL INVOICE WEEK 16,BD1 3AZ,Admin
Food Standards Agency,Food Standards Agency,08/04/2015,Travel UK ,Area 2 Wales - Cluster 22,Redfern Travel Ltd,103051,237.32,REDFERN TRAVEL INVOICE WK 13,BD1 3AZ,Programme
Food Standards Agency,Food Standards Agency,02/04/2015,Subsistence UK,Microbiological Food Safety Branch,Redfern Travel Ltd,102812,234.10,Redfern Travel Invoice wk 12,BD1 3AZ,Admin
Food Standards Agency,Food Standards Agency,02/04/2015,Travel UK ,Operations Assurance - Admin,Redfern Travel Ltd,102812,233.05,Redfern Travel Invoice wk 12,BD1 3AZ,Admin
Food Standards Agency,Food Standards Agency,28/04/2015,Subsistence UK,Consumer Protection & Commercial Support,Redfern Travel Ltd,80,232.35,REDFERN TRAVEL INVOICE WEEK 16,BD1 3AZ,Admin
Food Standards Agency,Food Standards Agency,28/04/2015,Travel UK ,European & International Strategy,Redfern Travel Ltd,80,231.71,REDFERN TRAVEL INVOICE WEEK 16,BD1 3AZ,Admin
Food Standards Agency,Food Standards Agency,02/04/2015,Travel UK ,Area 2 Wales - Cluster 22,Redfern Travel Ltd,102812,231.65,Redfern Travel Invoice wk 12,BD1 3AZ,Programme
Food Standards Agency,Food Standards Agency,08/04/2015,Travel UK ,Area 4 North East England - Cluster 44,Redfern Travel Ltd,101288,231.63,REDFERN E INVOICE WK 9,BD1 3AZ,Programme
Food Standards Agency,Food Standards Agency,08/04/2015,Subsistence UK,Contaminants Policy & Strategy Unit,Redfern Travel Ltd,103051,230.44,REDFERN TRAVEL INVOICE WK 13,BD1 3AZ,Admin
Food Standards Agency,Food Standards Agency,08/04/2015,Travel UK ,Comms Directors Office,Redfern Travel Ltd,101288,228.96,REDFERN E INVOICE WK 9,BD1 3AZ,Admin
Food Standards Agency,Food Standards Agency,28/04/2015,Subsistence UK,Food Systems Intelligence,Redfern Travel Ltd,80,226.80,REDFERN TRAVEL INVOICE WEEK 16,BD1 3AZ,Admin
Food Standards Agency,Food Standards Agency,28/04/2015,Subsistence - EC,Contaminants Policy & Strategy Unit,Redfern Travel Ltd,80,225.85,REDFERN TRAVEL INVOICE WEEK 16,BD1 3AZ,Admin
Food Standards Agency,Food Standards Agency,28/04/2015,Travel UK ,Consumer Protection & Commercial Support,Redfern Travel Ltd,80,220.66,REDFERN TRAVEL INVOICE WEEK 16,BD1 3AZ,Admin
Food Standards Agency,Food Standards Agency,02/04/2015,Travel UK ,Area 5 South West England - Cluster 51,Redfern Travel Ltd,102812,220.53,Redfern Travel Invoice wk 12,BD1 3AZ,Programme
Food Standards Agency,Food Standards Agency,28/04/2015,Travel UK ,Chief Executive & Private Office,Redfern Travel Ltd,80,220.39,REDFERN TRAVEL INVOICE WEEK 16,BD1 3AZ,Admin
Food Standards Agency,Food Standards Agency,08/04/2015,Travel UK ,Procurement,Redfern Travel Ltd,101288,219.08,REDFERN E INVOICE WK 9,BD1 3AZ,Admin
Food Standards Agency,Food Standards Agency,08/04/2015,Travel UK ,Additives,Redfern Travel Ltd,103051,218.50,REDFERN TRAVEL INVOICE WK 13,BD1 3AZ,Admin
Food Standards Agency,Food Standards Agency,02/04/2015,Subsistence UK,Consumer Protection & Commercial Support,Redfern Travel Ltd,102812,217.80,Redfern Travel Invoice wk 12,BD1 3AZ,Admin
Food Standards Agency,Food Standards Agency,08/04/2015,Subsistence UK,Area 1 Scotland - Cluster 11,Redfern Travel Ltd,101288,217.75,REDFERN E INVOICE WK 9,BD1 3AZ,Programme
Food Standards Agency,Food Standards Agency,08/04/2015,Subsistence UK,Area 1 Scotland - Cluster 15,Redfern Travel Ltd,101288,217.75,REDFERN E INVOICE WK 9,BD1 3AZ,Programme
Food Standards Agency,Food Standards Agency,08/04/2015,Travel UK ,Official Feed & Foods Controls Policy Unit,Redfern Travel Ltd,103051,216.42,REDFERN TRAVEL INVOICE WK 13,BD1 3AZ,Admin
Food Standards Agency,Food Standards Agency,02/04/2015,Travel UK ,Additives,Redfern Travel Ltd,102812,212.71,Redfern Travel Invoice wk 12,BD1 3AZ,Admin
Food Standards Agency,Food Standards Agency,02/04/2015,Travel UK ,Security & Estates,Redfern Travel Ltd,102812,210.03,Consolidated Invoice - Travel Costs for SES Staff - April 2015,BD1 3AZ,Admin
Food Standards Agency,Food Standards Agency,08/04/2015,Travel UK ,Area 6 South East England - Cluster 64,Redfern Travel Ltd,103051,209.92,REDFERN TRAVEL INVOICE WK 13,BD1 3AZ,Programme
Food Standards Agency,Food Standards Agency,08/04/2015,Travel UK ,Additives,Redfern Travel Ltd,101288,204.71,REDFERN E INVOICE WK 9,BD1 3AZ,Admin
Food Standards Agency,Food Standards Agency,28/04/2015,Subsistence UK,Area 6 South East England - Cluster 61,Redfern Travel Ltd,80,204.70,REDFERN TRAVEL INVOICE WEEK 16,BD1 3AZ,Programme
Food Standards Agency,Food Standards Agency,28/04/2015,Subsistence - EC,European & International Strategy,Redfern Travel Ltd,80,201.72,REDFERN TRAVEL INVOICE WEEK 16,BD1 3AZ,Admin
Food Standards Agency,Food Standards Agency,08/04/2015,Subsistence UK,Area 1 Scotland - Cluster 11,Redfern Travel Ltd,103051,200.11,REDFERN TRAVEL INVOICE WK 13,BD1 3AZ,Programme
Food Standards Agency,Food Standards Agency,08/04/2015,Subsistence UK,Procurement,Redfern Travel Ltd,101288,197.45,REDFERN E INVOICE WK 9,BD1 3AZ,Admin
Food Standards Agency,Food Standards Agency,08/04/2015,Subsistence UK,Official Controls & Enforcement Strategy,Redfern Travel Ltd,101288,196.40,REDFERN E INVOICE WK 9,BD1 3AZ,Admin
Food Standards Agency,Food Standards Agency,08/04/2015,Subsistence UK,Area 5 South West England - Cluster 52,Redfern Travel Ltd,103051,195.40,REDFERN TRAVEL INVOICE WK 13,BD1 3AZ,Programme
Food Standards Agency,Food Standards Agency,08/04/2015,Travel UK ,Better Regulations & Sustainable Development,Redfern Travel Ltd,103051,193.28,REDFERN TRAVEL INVOICE WK 13,BD1 3AZ,Admin
Food Standards Agency,Food Standards Agency,02/04/2015,Subsistence UK,Area 5 South West England - Cluster 53,Redfern Travel Ltd,102812,191.40,Redfern Travel Invoice wk 12,BD1 3AZ,Programme
Food Standards Agency,Food Standards Agency,28/04/2015,Travel UK ,Area 3 North West England - Cluster 33,Redfern Travel Ltd,80,189.49,REDFERN TRAVEL INVOICE WEEK 16,BD1 3AZ,Programme
Food Standards Agency,Food Standards Agency,28/04/2015,Travel UK ,Procurement,Redfern Travel Ltd,80,189.11,REDFERN TRAVEL INVOICE WEEK 16,BD1 3AZ,Admin
Food Standards Agency,Food Standards Agency,02/04/2015,Travel UK ,Area 6 South East England - Cluster 65,Redfern Travel Ltd,102812,188.71,Redfern Travel Invoice wk 12,BD1 3AZ,Programme
Food Standards Agency,Food Standards Agency,02/04/2015,Subsistence UK,Chief Executive & Private Office,Redfern Travel Ltd,102812,188.60,Redfern Travel Invoice wk 12,BD1 3AZ,Admin
Food Standards Agency,Food Standards Agency,02/04/2015,Travel UK ,Allergens,Redfern Travel Ltd,102812,184.71,Redfern Travel Invoice wk 12,BD1 3AZ,Admin
Food Standards Agency,Food Standards Agency,08/04/2015,Travel UK ,Animal Feed     ,Redfern Travel Ltd,103051,184.55,REDFERN TRAVEL INVOICE WK 13,BD1 3AZ,Admin
Food Standards Agency,Food Standards Agency,28/04/2015,Travel UK ,Internal Audit,Redfern Travel Ltd,80,184.55,REDFERN TRAVEL INVOICE WEEK 16,BD1 3AZ,Admin
Food Standards Agency,Food Standards Agency,08/04/2015,Subsistence - EC,Allergens,Redfern Travel Ltd,103051,184.09,REDFERN TRAVEL INVOICE WK 13,BD1 3AZ,Admin
Food Standards Agency,Food Standards Agency,08/04/2015,Travel UK ,Operations Local Delivery ,Redfern Travel Ltd,103051,183.31,REDFERN TRAVEL INVOICE WK 13,BD1 3AZ,Admin
Food Standards Agency,Food Standards Agency,08/04/2015,Subsistence UK,Area 2 Wales - Cluster 23,Redfern Travel Ltd,103051,180.85,REDFERN TRAVEL INVOICE WK 13,BD1 3AZ,Programme
Food Standards Agency,Food Standards Agency,08/04/2015,Travel UK ,Area 5 South West England - Cluster 51,Redfern Travel Ltd,101288,180.35,REDFERN E INVOICE WK 9,BD1 3AZ,Programme
Food Standards Agency,Food Standards Agency,08/04/2015,Travel UK ,Chief Scientist,Redfern Travel Ltd,101288,179.62,REDFERN E INVOICE WK 9,BD1 3AZ,Admin
Food Standards Agency,Food Standards Agency,08/04/2015,Travel UK ,Area 1 Scotland - Cluster 15,Redfern Travel Ltd,101288,178.43,REDFERN E INVOICE WK 9,BD1 3AZ,Programme
Food Standards Agency,Food Standards Agency,08/04/2015,Subsistence UK,Internal Audit,Redfern Travel Ltd,103051,176.20,REDFERN TRAVEL INVOICE WK 13,BD1 3AZ,Admin
Food Standards Agency,Food Standards Agency,08/04/2015,Travel UK ,Area 6 South East England - Cluster 65,Redfern Travel Ltd,103051,175.97,REDFERN TRAVEL INVOICE WK 13,BD1 3AZ,Programme
Food Standards Agency,Food Standards Agency,02/04/2015,Subsistence UK,Legal Branch A,Redfern Travel Ltd,102812,175.80,Redfern Travel Invoice wk 12,BD1 3AZ,Admin
Food Standards Agency,Food Standards Agency,08/04/2015,Travel UK ,Area 1 Scotland - Cluster 12,Redfern Travel Ltd,103051,175.26,REDFERN TRAVEL INVOICE WK 13,BD1 3AZ,Programme
Food Standards Agency,Food Standards Agency,08/04/2015,Travel UK ,Area 6 South East England - Cluster 61,Redfern Travel Ltd,101288,172.60,REDFERN E INVOICE WK 9,BD1 3AZ,Programme
Food Standards Agency,Food Standards Agency,02/04/2015,Travel UK ,Animal Feed     ,Redfern Travel Ltd,102812,172.43,Redfern Travel Invoice wk 12,BD1 3AZ,Admin
Food Standards Agency,Food Standards Agency,08/04/2015,Travel UK ,Area 6 South East England - Cluster 63,Redfern Travel Ltd,103051,170.99,REDFERN TRAVEL INVOICE WK 13,BD1 3AZ,Programme
Food Standards Agency,Food Standards Agency,28/04/2015,Subsistence UK,Area 5 South West England - Cluster 53,Redfern Travel Ltd,80,168.80,REDFERN TRAVEL INVOICE WEEK 16,BD1 3AZ,Programme
Food Standards Agency,Food Standards Agency,08/04/2015,Subsistence UK,Directorate Support Unit,Redfern Travel Ltd,101288,165.40,REDFERN E INVOICE WK 9,BD1 3AZ,Admin
Food Standards Agency,Food Standards Agency,02/04/2015,Subsistence UK,Area 3 North West England - Cluster 33,Redfern Travel Ltd,102812,164.80,Redfern Travel Invoice wk 12,BD1 3AZ,Programme
Food Standards Agency,Food Standards Agency,28/04/2015,Travel UK ,EU Regulatory Reform Branch,Redfern Travel Ltd,80,162.91,REDFERN TRAVEL INVOICE WEEK 16,BD1 3AZ,Admin
Food Standards Agency,Food Standards Agency,08/04/2015,Travel UK ,Area 4 North East England - Cluster 47,Redfern Travel Ltd,103051,162.70,REDFERN TRAVEL INVOICE WK 13,BD1 3AZ,Programme
Food Standards Agency,Food Standards Agency,08/04/2015,Travel UK ,Area 4 North East England - Cluster 41,Redfern Travel Ltd,101288,162.33,REDFERN E INVOICE WK 9,BD1 3AZ,Programme
Food Standards Agency,Food Standards Agency,08/04/2015,Subsistence - EC,Area 5 South West England - Cluster 57,Redfern Travel Ltd,103051,161.40,REDFERN TRAVEL INVOICE WK 13,BD1 3AZ,Programme
Food Standards Agency,Food Standards Agency,08/04/2015,Subsistence UK,Area 6 South East England - Cluster 64,Redfern Travel Ltd,103051,161.40,REDFERN TRAVEL INVOICE WK 13,BD1 3AZ,Programme
Food Standards Agency,Food Standards Agency,28/04/2015,Subsistence UK,Area 6 South East England - Cluster 64,Redfern Travel Ltd,80,161.40,REDFERN TRAVEL INVOICE WEEK 16,BD1 3AZ,Programme
Food Standards Agency,Food Standards Agency,02/04/2015,Travel UK ,Area 6 South East England - Cluster 61,Redfern Travel Ltd,102812,159.74,Redfern Travel Invoice wk 12,BD1 3AZ,Programme
Food Standards Agency,Food Standards Agency,02/04/2015,Travel UK ,Animal Feed Branch,Redfern Travel Ltd,102812,159.40,Redfern Travel Invoice wk 12,BD1 3AZ,Admin
Food Standards Agency,Food Standards Agency,02/04/2015,Subsistence UK,Area 4 North East England - Cluster 41,Redfern Travel Ltd,102812,158.30,Redfern Travel Invoice wk 12,BD1 3AZ,Programme
Food Standards Agency,Food Standards Agency,28/04/2015,Travel UK ,Food Systems Intelligence,Redfern Travel Ltd,80,158.04,REDFERN TRAVEL INVOICE WEEK 16,BD1 3AZ,Admin
Food Standards Agency,Food Standards Agency,28/04/2015,Travel UK ,Chemical Risk Assessment Unit,Redfern Travel Ltd,80,156.66,REDFERN TRAVEL INVOICE WEEK 16,BD1 3AZ,Admin
Food Standards Agency,Food Standards Agency,28/04/2015,Travel UK ,Area 5 South West England - Cluster 55,Redfern Travel Ltd,80,156.25,REDFERN TRAVEL INVOICE WEEK 16,BD1 3AZ,Programme
Food Standards Agency,Food Standards Agency,02/04/2015,Travel UK ,Procurement,Redfern Travel Ltd,102812,156.04,Redfern Travel Invoice wk 12,BD1 3AZ,Admin
Food Standards Agency,Food Standards Agency,02/04/2015,Travel UK ,Better Regulations & Sustainable Development,Redfern Travel Ltd,102812,155.52,Redfern Travel Invoice wk 12,BD1 3AZ,Admin
Food Standards Agency,Food Standards Agency,02/04/2015,Travel UK ,HR,Redfern Travel Ltd,102812,154.82,Redfern Travel Invoice wk 12,BD1 3AZ,Admin
Food Standards Agency,Food Standards Agency,08/04/2015,Travel UK ,Comms Directors Office,Redfern Travel Ltd,103051,153.80,REDFERN TRAVEL INVOICE WK 13,BD1 3AZ,Admin
Food Standards Agency,Food Standards Agency,08/04/2015,Subsistence UK,Chief Scientist,Redfern Travel Ltd,103051,152.03,REDFERN TRAVEL INVOICE WK 13,BD1 3AZ,Admin
Food Standards Agency,Food Standards Agency,08/04/2015,Subsistence UK,Food Hygiene Policy Branch,Redfern Travel Ltd,103051,151.40,REDFERN TRAVEL INVOICE WK 13,BD1 3AZ,Admin
Food Standards Agency,Food Standards Agency,08/04/2015,Subsistence UK,Area 3 North West England - Cluster 36,Redfern Travel Ltd,103051,150.60,REDFERN TRAVEL INVOICE WK 13,BD1 3AZ,Programme
Food Standards Agency,Food Standards Agency,08/04/2015,Subsistence UK,Area 5 South West England - Cluster 51,Redfern Travel Ltd,103051,149.40,REDFERN TRAVEL INVOICE WK 13,BD1 3AZ,Programme
Food Standards Agency,Food Standards Agency,28/04/2015,International Travel,Analysis & Research Branch,Redfern Travel Ltd,80,147.50,REDFERN TRAVEL INVOICE WEEK 16,BD1 3AZ,Admin
Food Standards Agency,Food Standards Agency,08/04/2015,Subsistence UK,Chair & Deputy Chair,Redfern Travel Ltd,103051,147.40,REDFERN TRAVEL INVOICE WK 13,BD1 3AZ,Admin
Food Standards Agency,Food Standards Agency,28/04/2015,Subsistence - EC,Food Hygiene Policy Branch,Redfern Travel Ltd,80,145.78,REDFERN TRAVEL INVOICE WEEK 16,BD1 3AZ,Admin
Food Standards Agency,Food Standards Agency,28/04/2015,Travel UK ,Procurement,Redfern Travel Ltd,80,145.14,REDFERN TRAVEL INVOICE WEEK 16,BD1 3AZ,Admin
Food Standards Agency,Food Standards Agency,08/04/2015,Travel UK ,Area 4 North East England - Cluster 46,Redfern Travel Ltd,101288,144.58,REDFERN E INVOICE WK 9,BD1 3AZ,Programme
Food Standards Agency,Food Standards Agency,02/04/2015,Subsistence UK,Food Hygiene Policy Branch,Redfern Travel Ltd,102812,142.00,Redfern Travel Invoice wk 12,BD1 3AZ,Admin
Food Standards Agency,Food Standards Agency,08/04/2015,Subsistence UK,Area 2 Wales - Cluster 21,Redfern Travel Ltd,101288,140.90,REDFERN E INVOICE WK 9,BD1 3AZ,Programme
Food Standards Agency,Food Standards Agency,28/04/2015,Travel UK ,Area 6 South East England - Cluster 63,Redfern Travel Ltd,80,140.41,REDFERN TRAVEL INVOICE WEEK 16,BD1 3AZ,Programme
Food Standards Agency,Food Standards Agency,08/04/2015,Travel UK ,Operations Assurance - Admin,Redfern Travel Ltd,101288,139.31,REDFERN E INVOICE WK 9,BD1 3AZ,Admin
Food Standards Agency,Food Standards Agency,02/04/2015,Travel UK ,Food Hygiene Policy Branch,Redfern Travel Ltd,102812,137.67,Redfern Travel Invoice wk 12,BD1 3AZ,Admin
Food Standards Agency,Food Standards Agency,02/04/2015,Subsistence - EC,Allergens,Redfern Travel Ltd,102812,137.65,Redfern Travel Invoice wk 12,BD1 3AZ,Admin
Food Standards Agency,Food Standards Agency,08/04/2015,Travel UK ,IT Service Delivery,Redfern Travel Ltd,101288,136.64,REDFERN,BD1 3AZ,Admin
Food Standards Agency,Food Standards Agency,02/04/2015,Travel UK ,Chief Executive & Private Office,Redfern Travel Ltd,102812,136.30,Redfern Travel Invoice wk 12,BD1 3AZ,Admin
Food Standards Agency,Food Standards Agency,02/04/2015,Subsistence UK,Food Production Branch,Redfern Travel Ltd,102812,132.25,Redfern Travel Invoice wk 12,BD1 3AZ,Admin
Food Standards Agency,Food Standards Agency,08/04/2015,Travel UK ,Legal Branch A,Redfern Travel Ltd,103051,130.96,REDFERN TRAVEL INVOICE WK 13,BD1 3AZ,Admin
Food Standards Agency,Food Standards Agency,08/04/2015,Subsistence UK,Area 5 South West England - Cluster 55,Redfern Travel Ltd,101288,130.60,REDFERN E INVOICE WK 9,BD1 3AZ,Programme
Food Standards Agency,Food Standards Agency,08/04/2015,Subsistence UK,Security & Estates,Redfern Travel Ltd,103051,130.40,Consolidated Invoice - Travel Costs for SES Staff - April 2015,BD1 3AZ,Admin
Food Standards Agency,Food Standards Agency,28/04/2015,Subsistence UK,Security & Estates,Redfern Travel Ltd,80,130.40,Consolidated Invoice - Travel Costs for SES Staff - April 2015,BD1 3AZ,Admin
Food Standards Agency,Food Standards Agency,08/04/2015,Subsistence UK,Area 1 Scotland - Cluster 12,Redfern Travel Ltd,103051,130.35,REDFERN TRAVEL INVOICE WK 13,BD1 3AZ,Programme
Food Standards Agency,Food Standards Agency,08/04/2015,Subsistence UK,Area 1 Scotland - Cluster 13,Redfern Travel Ltd,103051,130.35,REDFERN TRAVEL INVOICE WK 13,BD1 3AZ,Programme
Food Standards Agency,Food Standards Agency,08/04/2015,Subsistence UK,Area 1 Scotland - Cluster 15,Redfern Travel Ltd,103051,130.35,REDFERN TRAVEL INVOICE WK 13,BD1 3AZ,Programme
Food Standards Agency,Food Standards Agency,28/04/2015,Travel UK ,Area 3 North West England - Cluster 35,Redfern Travel Ltd,80,127.31,REDFERN TRAVEL INVOICE WEEK 16,BD1 3AZ,Programme
Food Standards Agency,Food Standards Agency,08/04/2015,Travel UK ,Animal Feed     ,Redfern Travel Ltd,101288,125.38,REDFERN E INVOICE WK 9,BD1 3AZ,Admin
Food Standards Agency,Food Standards Agency,02/04/2015,Travel UK ,Area 5 South West England - Cluster 57,Redfern Travel Ltd,102812,123.96,Redfern Travel Invoice wk 12,BD1 3AZ,Programme
Food Standards Agency,Food Standards Agency,08/04/2015,Subsistence UK,Animal Feed Branch,Redfern Travel Ltd,103051,121.74,REDFERN TRAVEL INVOICE WK 13,BD1 3AZ,Admin
Food Standards Agency,Food Standards Agency,28/04/2015,Subsistence - EC,Allergens,Redfern Travel Ltd,80,120.10,REDFERN TRAVEL INVOICE WEEK 16,BD1 3AZ,Admin
Food Standards Agency,Food Standards Agency,02/04/2015,Travel UK ,Chemical Risk Assessment Unit,Redfern Travel Ltd,102812,119.24,Redfern Travel Invoice wk 12,BD1 3AZ,Admin
Food Standards Agency,Food Standards Agency,08/04/2015,Travel UK ,Area 6 South East England - Cluster 62,Redfern Travel Ltd,101288,117.78,REDFERN E INVOICE WK 9,BD1 3AZ,Programme
Food Standards Agency,Food Standards Agency,08/04/2015,Travel UK ,Analysis & Research Branch,Redfern Travel Ltd,103051,117.77,REDFERN TRAVEL INVOICE WK 13,BD1 3AZ,Admin
Food Standards Agency,Food Standards Agency,02/04/2015,Travel UK ,EU Regulatory Reform Branch,Redfern Travel Ltd,102812,117.62,Redfern Travel Invoice wk 12,BD1 3AZ,Admin
Food Standards Agency,Food Standards Agency,02/04/2015,Subsistence UK,Area 1 Scotland - Cluster 11,Redfern Travel Ltd,102812,116.40,Redfern Travel Invoice wk 12,BD1 3AZ,Programme
Food Standards Agency,Food Standards Agency,08/04/2015,Subsistence - EC,Contaminants HoD,Redfern Travel Ltd,103051,116.38,REDFERN TRAVEL INVOICE WK 13,BD1 3AZ,Admin
Food Standards Agency,Food Standards Agency,08/04/2015,Subsistence - EC,Food Hygiene Policy Branch,Redfern Travel Ltd,103051,114.78,REDFERN TRAVEL INVOICE WK 13,BD1 3AZ,Admin
Food Standards Agency,Food Standards Agency,28/04/2015,Travel UK ,Area 4 North East England - Cluster 43,Redfern Travel Ltd,80,114.77,REDFERN TRAVEL INVOICE WEEK 16,BD1 3AZ,Programme
Food Standards Agency,Food Standards Agency,02/04/2015,Subsistence UK,Area 5 South West England - Cluster 51,Redfern Travel Ltd,102812,114.10,Redfern Travel Invoice wk 12,BD1 3AZ,Programme
Food Standards Agency,Food Standards Agency,08/04/2015,Subsistence - EC,Legal Branch A,Redfern Travel Ltd,103051,112.90,REDFERN TRAVEL INVOICE WK 13,BD1 3AZ,Admin
Food Standards Agency,Food Standards Agency,02/04/2015,Travel UK ,Analysis & Research Branch,Redfern Travel Ltd,102812,112.90,Redfern Travel Invoice wk 12,BD1 3AZ,Admin
Food Standards Agency,Food Standards Agency,08/04/2015,Subsistence - EC,Better Regulations & Sustainable Development,Redfern Travel Ltd,103051,112.90,REDFERN TRAVEL INVOICE WK 13,BD1 3AZ,Admin
Food Standards Agency,Food Standards Agency,08/04/2015,Travel UK ,Area 4 North East England - Cluster 45,Redfern Travel Ltd,101288,112.29,REDFERN E INVOICE WK 9,BD1 3AZ,Programme
Food Standards Agency,Food Standards Agency,02/04/2015,Subsistence UK,Contaminants HoD,Redfern Travel Ltd,102812,111.40,Redfern Travel Invoice wk 12,BD1 3AZ,Admin
Food Standards Agency,Food Standards Agency,08/04/2015,Subsistence UK,Area 1 Scotland - Cluster 12,Redfern Travel Ltd,101288,110.35,REDFERN E INVOICE WK 9,BD1 3AZ,Programme
Food Standards Agency,Food Standards Agency,08/04/2015,Subsistence UK,Area 1 Scotland - Cluster 13,Redfern Travel Ltd,101288,110.35,REDFERN E INVOICE WK 9,BD1 3AZ,Programme
Food Standards Agency,Food Standards Agency,08/04/2015,Travel UK ,Official Feed & Foods Controls Policy Unit,Redfern Travel Ltd,101288,107.11,REDFERN E INVOICE WK 9,BD1 3AZ,Admin
Food Standards Agency,Food Standards Agency,02/04/2015,Travel UK ,Procurement,Redfern Travel Ltd,102812,106.77,Redfern Travel Invoice wk 12,BD1 3AZ,Admin
Food Standards Agency,Food Standards Agency,08/04/2015,Travel UK ,Chair & Deputy Chair,Redfern Travel Ltd,101288,105.85,REDFERN E INVOICE WK 9,BD1 3AZ,Admin
Food Standards Agency,Food Standards Agency,28/04/2015,Travel UK ,Animal Feed Branch,Redfern Travel Ltd,80,104.07,REDFERN TRAVEL INVOICE WEEK 16,BD1 3AZ,Admin
Food Standards Agency,Food Standards Agency,28/04/2015,Subsistence UK,Area 3 North West England - Cluster 33,Redfern Travel Ltd,80,103.05,REDFERN TRAVEL INVOICE WEEK 16,BD1 3AZ,Programme
Food Standards Agency,Food Standards Agency,08/04/2015,Subsistence UK,Area 5 South West England - Cluster 53,Redfern Travel Ltd,103051,103.05,REDFERN TRAVEL INVOICE WK 13,BD1 3AZ,Programme
Food Standards Agency,Food Standards Agency,02/04/2015,Subsistence UK,Area 6 South East England - Cluster 62,Redfern Travel Ltd,102812,103.05,Redfern Travel Invoice wk 12,BD1 3AZ,Programme
Food Standards Agency,Food Standards Agency,08/04/2015,Subsistence UK,Area 6 South East England - Cluster 65,Redfern Travel Ltd,103051,103.05,REDFERN TRAVEL INVOICE WK 13,BD1 3AZ,Programme
Food Standards Agency,Food Standards Agency,08/04/2015,Subsistence UK,Area 6 South East England - Cluster 61,Redfern Travel Ltd,101288,102.05,REDFERN E INVOICE WK 9,BD1 3AZ,Programme
Food Standards Agency,Food Standards Agency,08/04/2015,Subsistence UK,Comms Directors Office,Redfern Travel Ltd,101288,102.05,REDFERN E INVOICE WK 9,BD1 3AZ,Admin
Food Standards Agency,Food Standards Agency,08/04/2015,Subsistence UK,Area 3 North West England - Cluster 34,Redfern Travel Ltd,101288,101.40,REDFERN E INVOICE WK 9,BD1 3AZ,Programme
Food Standards Agency,Food Standards Agency,08/04/2015,Subsistence UK,Area 6 South East England - Cluster 65,Redfern Travel Ltd,101288,101.40,REDFERN E INVOICE WK 9,BD1 3AZ,Programme
Food Standards Agency,Food Standards Agency,08/04/2015,Subsistence UK,Chemical Risk Assessment Unit,Redfern Travel Ltd,103051,101.40,REDFERN TRAVEL INVOICE WK 13,BD1 3AZ,Admin
Food Standards Agency,Food Standards Agency,08/04/2015,Subsistence UK,Finance Director & Branch,Redfern Travel Ltd,103051,100.25,REDFERN TRAVEL INVOICE WK 13,BD1 3AZ,Admin
Food Standards Agency,Food Standards Agency,28/04/2015,Subsistence UK,Area 1 Scotland - Cluster 11,Redfern Travel Ltd,80,98.40,REDFERN TRAVEL INVOICE WEEK 16,BD1 3AZ,Programme
Food Standards Agency,Food Standards Agency,08/04/2015,Travel UK ,Food Systems Intelligence,Redfern Travel Ltd,101288,96.58,REDFERN E INVOICE WK 9,BD1 3AZ,Admin
Food Standards Agency,Food Standards Agency,02/04/2015,Subsistence UK,Comms Directors Office,Redfern Travel Ltd,102812,96.40,Redfern Travel Invoice wk 12,BD1 3AZ,Admin
Food Standards Agency,Food Standards Agency,08/04/2015,Subsistence UK,Area 6 South East England - Cluster 64,Redfern Travel Ltd,101288,95.40,REDFERN E INVOICE WK 9,BD1 3AZ,Programme
Food Standards Agency,Food Standards Agency,28/04/2015,Subsistence - EC,Additives,Redfern Travel Ltd,80,94.65,REDFERN TRAVEL INVOICE WEEK 16,BD1 3AZ,Admin
Food Standards Agency,Food Standards Agency,08/04/2015,Travel UK ,Area 1 Scotland - Cluster 15,Redfern Travel Ltd,103051,94.60,REDFERN TRAVEL INVOICE WK 13,BD1 3AZ,Programme
Food Standards Agency,Food Standards Agency,28/04/2015,Subsistence UK,Area 2 Wales - Cluster 23,Redfern Travel Ltd,80,91.40,REDFERN TRAVEL INVOICE WEEK 16,BD1 3AZ,Programme
Food Standards Agency,Food Standards Agency,08/04/2015,Subsistence UK,Area 3 North West England - Cluster 33,Redfern Travel Ltd,101288,91.40,REDFERN E INVOICE WK 9,BD1 3AZ,Programme
Food Standards Agency,Food Standards Agency,08/04/2015,Travel UK ,Area 6 South East England - Cluster 66,Redfern Travel Ltd,101288,91.04,REDFERN E INVOICE WK 9,BD1 3AZ,Programme
Food Standards Agency,Food Standards Agency,02/04/2015,Travel UK ,Area 6 South East England - Cluster 66,Redfern Travel Ltd,102812,91.04,Redfern Travel Invoice wk 12,BD1 3AZ,Programme
Food Standards Agency,Food Standards Agency,28/04/2015,Subsistence UK,Operations Assurance - Admin,Redfern Travel Ltd,80,90.45,REDFERN TRAVEL INVOICE WEEK 16,BD1 3AZ,Admin
Food Standards Agency,Food Standards Agency,28/04/2015,Travel UK ,Microbiological Food Safety Branch,Redfern Travel Ltd,80,89.99,REDFERN TRAVEL INVOICE WEEK 16,BD1 3AZ,Admin
Food Standards Agency,Food Standards Agency,02/04/2015,Subsistence UK,Area 4 North East England - Cluster 46,Redfern Travel Ltd,102812,89.70,Redfern Travel Invoice wk 12,BD1 3AZ,Programme
Food Standards Agency,Food Standards Agency,08/04/2015,Travel UK ,Chief Executive & Private Office,Redfern Travel Ltd,101288,89.01,REDFERN E INVOICE WK 9,BD1 3AZ,Admin
Food Standards Agency,Food Standards Agency,08/04/2015,Subsistence UK,Area 2 Wales - Cluster 23,Redfern Travel Ltd,101288,88.40,REDFERN E INVOICE WK 9,BD1 3AZ,Programme
Food Standards Agency,Food Standards Agency,08/04/2015,Subsistence UK,Area 3 North West England - Cluster 35,Redfern Travel Ltd,103051,88.40,REDFERN TRAVEL INVOICE WK 13,BD1 3AZ,Programme
Food Standards Agency,Food Standards Agency,08/04/2015,Travel UK ,Area 1 Scotland - Cluster 13,Redfern Travel Ltd,103051,87.33,REDFERN TRAVEL INVOICE WK 13,BD1 3AZ,Programme
Food Standards Agency,Food Standards Agency,08/04/2015,Subsistence UK,Area 3 North West England - Cluster 31,Redfern Travel Ltd,101288,84.20,REDFERN E INVOICE WK 9,BD1 3AZ,Programme
Food Standards Agency,Food Standards Agency,02/04/2015,Subsistence UK,European & International Strategy,Redfern Travel Ltd,102812,84.20,Redfern Travel Invoice wk 12,BD1 3AZ,Admin
Food Standards Agency,Food Standards Agency,28/04/2015,Travel UK ,Analysis & Research Branch,Redfern Travel Ltd,80,83.44,REDFERN TRAVEL INVOICE WEEK 16,BD1 3AZ,Admin
Food Standards Agency,Food Standards Agency,28/04/2015,Travel UK ,Area 5 South West England - Cluster 53,Redfern Travel Ltd,80,82.12,REDFERN TRAVEL INVOICE WEEK 16,BD1 3AZ,Programme
Food Standards Agency,Food Standards Agency,08/04/2015,Travel UK ,Analysis & Research Branch,Redfern Travel Ltd,103051,81.86,REDFERN TRAVEL INVOICE WK 13,BD1 3AZ,Admin
Food Standards Agency,Food Standards Agency,08/04/2015,Subsistence UK,Area 3 North West England - Cluster 32,Redfern Travel Ltd,101288,81.40,REDFERN E INVOICE WK 9,BD1 3AZ,Programme
Food Standards Agency,Food Standards Agency,08/04/2015,Subsistence UK,Area 3 North West England - Cluster 33,Redfern Travel Ltd,103051,81.40,REDFERN TRAVEL INVOICE WK 13,BD1 3AZ,Programme
Food Standards Agency,Food Standards Agency,08/04/2015,Subsistence UK,Area 3 North West England - Cluster 35,Redfern Travel Ltd,101288,81.40,REDFERN E INVOICE WK 9,BD1 3AZ,Programme
Food Standards Agency,Food Standards Agency,28/04/2015,Subsistence UK,Chief Scientist,Redfern Travel Ltd,80,81.40,REDFERN TRAVEL INVOICE WEEK 16,BD1 3AZ,Admin
Food Standards Agency,Food Standards Agency,02/04/2015,Travel UK ,Area 5 South West England - Cluster 53,Redfern Travel Ltd,102812,81.29,Redfern Travel Invoice wk 12,BD1 3AZ,Programme
Food Standards Agency,Food Standards Agency,08/04/2015,Travel UK ,Investigations,Redfern Travel Ltd,103051,80.92,REDFERN TRAVEL INVOICE WK 13,BD1 3AZ,Admin
Food Standards Agency,Food Standards Agency,28/04/2015,Travel UK ,Area 6 South East England - Cluster 64,Redfern Travel Ltd,80,80.78,REDFERN TRAVEL INVOICE WEEK 16,BD1 3AZ,Programme
Food Standards Agency,Food Standards Agency,02/04/2015,Travel UK ,European & International Strategy,Redfern Travel Ltd,102812,80.50,Redfern Travel Invoice wk 12,BD1 3AZ,Admin
Food Standards Agency,Food Standards Agency,08/04/2015,Travel UK ,Area 5 South West England - Cluster 52,Redfern Travel Ltd,101288,80.44,REDFERN E INVOICE WK 9,BD1 3AZ,Programme
Food Standards Agency,Food Standards Agency,08/04/2015,Subsistence UK,Area 3 North West England - Cluster 36,Redfern Travel Ltd,101288,79.70,REDFERN E INVOICE WK 9,BD1 3AZ,Programme
Food Standards Agency,Food Standards Agency,08/04/2015,Travel UK ,Area 3 North West England - Cluster 32,Redfern Travel Ltd,101288,79.42,REDFERN E INVOICE WK 9,BD1 3AZ,Programme
Food Standards Agency,Food Standards Agency,02/04/2015,International Travel,European & International Strategy,Redfern Travel Ltd,102812,78.66,Redfern Travel Invoice wk 12,BD1 3AZ,Admin
Food Standards Agency,Food Standards Agency,02/04/2015,Subsistence UK,Chemical Risk Assessment Unit,Redfern Travel Ltd,102812,77.40,Redfern Travel Invoice wk 12,BD1 3AZ,Admin
Food Standards Agency,Food Standards Agency,02/04/2015,Travel UK ,Food Production Branch,Redfern Travel Ltd,102812,77.25,Redfern Travel Invoice wk 12,BD1 3AZ,Admin
Food Standards Agency,Food Standards Agency,02/04/2015,Subsistence UK,Area 3 North West England - Cluster 32,Redfern Travel Ltd,102812,75.40,Redfern Travel Invoice wk 12,BD1 3AZ,Programme
Food Standards Agency,Food Standards Agency,08/04/2015,Subsistence UK,Area 3 North West England - Cluster 32,Redfern Travel Ltd,103051,75.40,REDFERN TRAVEL INVOICE WK 13,BD1 3AZ,Programme
Food Standards Agency,Food Standards Agency,28/04/2015,Travel UK ,Area 4 North East England - Cluster 41,Redfern Travel Ltd,80,75.33,REDFERN TRAVEL INVOICE WEEK 16,BD1 3AZ,Programme
Food Standards Agency,Food Standards Agency,08/04/2015,Subsistence UK,Area 4 North East England - Cluster 47,Redfern Travel Ltd,101288,75.20,REDFERN E INVOICE WK 9,BD1 3AZ,Programme
Food Standards Agency,Food Standards Agency,02/04/2015,Subsistence UK,Area 2 Wales - Cluster 23,Redfern Travel Ltd,102812,74.90,Redfern Travel Invoice wk 12,BD1 3AZ,Programme
Food Standards Agency,Food Standards Agency,08/04/2015,Subsistence UK,Area 4 North East England - Cluster 41,Redfern Travel Ltd,103051,74.90,REDFERN TRAVEL INVOICE WK 13,BD1 3AZ,Programme
Food Standards Agency,Food Standards Agency,08/04/2015,Subsistence UK,Area 6 South East England - Cluster 63,Redfern Travel Ltd,103051,74.90,REDFERN TRAVEL INVOICE WK 13,BD1 3AZ,Programme
Food Standards Agency,Food Standards Agency,28/04/2015,Subsistence - EC,Chief Scientist,Redfern Travel Ltd,80,73.40,REDFERN TRAVEL INVOICE WEEK 16,BD1 3AZ,Admin
Food Standards Agency,Food Standards Agency,28/04/2015,Travel UK ,Area 6 South East England - Cluster 66,Redfern Travel Ltd,80,72.78,REDFERN TRAVEL INVOICE WEEK 16,BD1 3AZ,Programme
Food Standards Agency,Food Standards Agency,28/04/2015,Travel UK ,IT Information & Knowledge Management,Redfern Travel Ltd,80,71.28,REDFERN TRAVEL INVOICE WEEK 16,BD1 3AZ,Admin
Food Standards Agency,Food Standards Agency,08/04/2015,Subsistence - EC,Consumer Protection & Commercial Support,Redfern Travel Ltd,103051,69.98,REDFERN TRAVEL INVOICE WK 13,BD1 3AZ,Admin
Food Standards Agency,Food Standards Agency,08/04/2015,Subsistence UK,Area 4 North East England - Cluster 46,Redfern Travel Ltd,103051,69.90,REDFERN TRAVEL INVOICE WK 13,BD1 3AZ,Programme
Food Standards Agency,Food Standards Agency,08/04/2015,Subsistence UK,Internal Audit,Redfern Travel Ltd,101288,69.45,REDFERN E INVOICE WK 9,BD1 3AZ,Admin
Food Standards Agency,Food Standards Agency,08/04/2015,Travel UK ,Area 4 North East England - Cluster 48,Redfern Travel Ltd,103051,69.12,REDFERN TRAVEL INVOICE WK 13,BD1 3AZ,Programme
Food Standards Agency,Food Standards Agency,02/04/2015,Subsistence UK,Security & Estates,Redfern Travel Ltd,102812,67.40,Consolidated Invoice - Travel Costs for SES Staff - April 2015,BD1 3AZ,Admin
Food Standards Agency,Food Standards Agency,02/04/2015,Travel UK ,Area 4 North East England - Cluster 41,Redfern Travel Ltd,102812,65.33,Redfern Travel Invoice wk 12,BD1 3AZ,Programme
Food Standards Agency,Food Standards Agency,02/04/2015,Subsistence UK,Area 4 North East England - Cluster 48,Redfern Travel Ltd,102812,64.40,Redfern Travel Invoice wk 12,BD1 3AZ,Programme
Food Standards Agency,Food Standards Agency,28/04/2015,Travel UK ,Area 5 South West England - Cluster 57,Redfern Travel Ltd,80,63.59,REDFERN TRAVEL INVOICE WEEK 16,BD1 3AZ,Programme
Food Standards Agency,Food Standards Agency,08/04/2015,Subsistence UK,Area 2 Wales - Cluster 22,Redfern Travel Ltd,101288,61.20,REDFERN E INVOICE WK 9,BD1 3AZ,Programme
Food Standards Agency,Food Standards Agency,08/04/2015,Subsistence - EC,Procurement,Redfern Travel Ltd,101288,61.20,REDFERN E INVOICE WK 9,BD1 3AZ,Admin
Food Standards Agency,Food Standards Agency,02/04/2015,Travel UK ,Area 5 South West England - Cluster 54,Redfern Travel Ltd,102812,60.58,Redfern Travel Invoice wk 12,BD1 3AZ,Programme
Food Standards Agency,Food Standards Agency,02/04/2015,Travel UK ,Area 1 Scotland - Cluster 12,Redfern Travel Ltd,102812,58.84,Redfern Travel Invoice wk 12,BD1 3AZ,Programme
Food Standards Agency,Food Standards Agency,02/04/2015,Travel UK ,Area 4 North East England - Cluster 44,Redfern Travel Ltd,102812,55.19,Redfern Travel Invoice wk 12,BD1 3AZ,Programme
Food Standards Agency,Food Standards Agency,08/04/2015,Travel UK ,Investigations,Redfern Travel Ltd,101288,54.06,REDFERN E INVOICE WK 9,BD1 3AZ,Admin
Food Standards Agency,Food Standards Agency,28/04/2015,Subsistence - EC,Area 5 South West England - Cluster 57,Redfern Travel Ltd,80,51.40,REDFERN TRAVEL INVOICE WEEK 16,BD1 3AZ,Programme
Food Standards Agency,Food Standards Agency,02/04/2015,Subsistence UK,Area 6 South East England - Cluster 64,Redfern Travel Ltd,102812,51.40,Redfern Travel Invoice wk 12,BD1 3AZ,Programme
Food Standards Agency,Food Standards Agency,08/04/2015,Travel UK ,Security & Estates,Redfern Travel Ltd,101288,50.69,Consolidated Invoice - Travel Costs for SES Staff - April 2015,BD1 3AZ,Admin
Food Standards Agency,Food Standards Agency,28/04/2015,Subsistence UK,Area 5 South West England - Cluster 54,Redfern Travel Ltd,80,50.05,REDFERN TRAVEL INVOICE WEEK 16,BD1 3AZ,Programme
Food Standards Agency,Food Standards Agency,28/04/2015,Subsistence UK,IT Information & Knowledge Management,Redfern Travel Ltd,80,50.05,REDFERN TRAVEL INVOICE WEEK 16,BD1 3AZ,Admin
Food Standards Agency,Food Standards Agency,28/04/2015,Travel UK ,Official Feed & Foods Controls Policy Unit,Redfern Travel Ltd,80,49.15,REDFERN TRAVEL INVOICE WEEK 16,BD1 3AZ,Admin
Food Standards Agency,Food Standards Agency,08/04/2015,Travel UK ,Area 5 South West England - Cluster 55,Redfern Travel Ltd,103051,49.01,REDFERN TRAVEL INVOICE WK 13,BD1 3AZ,Programme
Food Standards Agency,Food Standards Agency,02/04/2015,Travel UK ,Official Feed & Foods Controls Policy Unit,Redfern Travel Ltd,102812,43.42,Redfern Travel Invoice wk 12,BD1 3AZ,Admin
Food Standards Agency,Food Standards Agency,28/04/2015,Travel UK ,Food Production Branch,Redfern Travel Ltd,80,42.45,REDFERN TRAVEL INVOICE WEEK 16,BD1 3AZ,Admin
Food Standards Agency,Food Standards Agency,08/04/2015,Subsistence UK,Area 4 North East England - Cluster 47,Redfern Travel Ltd,103051,41.80,REDFERN TRAVEL INVOICE WK 13,BD1 3AZ,Programme
Food Standards Agency,Food Standards Agency,08/04/2015,Travel UK ,Chemical Risk Assessment Unit,Redfern Travel Ltd,103051,41.71,REDFERN TRAVEL INVOICE WK 13,BD1 3AZ,Admin
Food Standards Agency,Food Standards Agency,08/04/2015,Travel UK ,Area 6 South East England - Cluster 61,Redfern Travel Ltd,103051,41.15,REDFERN TRAVEL INVOICE WK 13,BD1 3AZ,Programme
Food Standards Agency,Food Standards Agency,08/04/2015,Travel UK ,Area 6 South East England - Cluster 64,Redfern Travel Ltd,101288,40.99,REDFERN E INVOICE WK 9,BD1 3AZ,Programme
Food Standards Agency,Food Standards Agency,28/04/2015,Subsistence UK,Area 4 North East England - Cluster 41,Redfern Travel Ltd,80,40.40,REDFERN TRAVEL INVOICE WEEK 16,BD1 3AZ,Programme
Food Standards Agency,Food Standards Agency,02/04/2015,Travel UK ,Microbiological Food Safety Branch,Redfern Travel Ltd,102812,39.93,Redfern Travel Invoice wk 12,BD1 3AZ,Admin
Food Standards Agency,Food Standards Agency,02/04/2015,Travel UK ,Area 4 North East England - Cluster 48,Redfern Travel Ltd,102812,38.90,Redfern Travel Invoice wk 12,BD1 3AZ,Programme
Food Standards Agency,Food Standards Agency,02/04/2015,Travel UK ,Area 5 South West England - Cluster 56,Redfern Travel Ltd,102812,33.04,Redfern Travel Invoice wk 12,BD1 3AZ,Programme
Food Standards Agency,Food Standards Agency,08/04/2015,Travel UK ,Area 4 North East England - Cluster 44,Redfern Travel Ltd,103051,28.16,REDFERN TRAVEL INVOICE WK 13,BD1 3AZ,Programme
Food Standards Agency,Food Standards Agency,28/04/2015,Travel UK ,Area 4 North East England - Cluster 44,Redfern Travel Ltd,80,28.16,REDFERN TRAVEL INVOICE WEEK 16,BD1 3AZ,Programme
Food Standards Agency,Food Standards Agency,28/04/2015,Travel UK ,Area 2 Wales - Cluster 21,Redfern Travel Ltd,80,27.00,REDFERN TRAVEL INVOICE WEEK 16,BD1 3AZ,Programme
Food Standards Agency,Food Standards Agency,02/04/2015,Travel UK ,Chief Scientist,Redfern Travel Ltd,102812,24.50,Redfern Travel Invoice wk 12,BD1 3AZ,Admin
Food Standards Agency,Food Standards Agency,02/04/2015,Travel UK ,IT Information & Knowledge Management,Redfern Travel Ltd,102812,21.71,Redfern Travel Invoice wk 12,BD1 3AZ,Admin
Food Standards Agency,Food Standards Agency,28/04/2015,Travel UK ,Area 4 North East England - Cluster 47,Redfern Travel Ltd,80,21.27,REDFERN TRAVEL INVOICE WEEK 16,BD1 3AZ,Programme
Food Standards Agency,Food Standards Agency,08/04/2015,Travel UK ,Internal Audit,Redfern Travel Ltd,103051,14.58,REDFERN TRAVEL INVOICE WK 13,BD1 3AZ,Admin
Food Standards Agency,Food Standards Agency,28/04/2015,Travel UK ,Investigations,Redfern Travel Ltd,80,13.35,REDFERN TRAVEL INVOICE WEEK 16,BD1 3AZ,Admin
Food Standards Agency,Food Standards Agency,28/04/2015,Travel UK ,Chair & Deputy Chair,Redfern Travel Ltd,80,7.13,REDFERN TRAVEL INVOICE WEEK 16,BD1 3AZ,Admin
Food Standards Agency,Food Standards Agency,02/04/2015,Subsistence - EC,Chief Scientist,Redfern Travel Ltd,102812,2.82,Redfern Travel Invoice wk 12,BD1 3AZ,Admin
Food Standards Agency,Food Standards Agency,28/04/2015,Subsistence - EC,Consumer Protection & Commercial Support,Redfern Travel Ltd,80,2.80,REDFERN TRAVEL INVOICE WEEK 16,BD1 3AZ,Admin
Food Standards Agency,Food Standards Agency,08/04/2015,Subsistence - EC,Animal Feed Branch,Redfern Travel Ltd,103051,2.80,REDFERN TRAVEL INVOICE WK 13,BD1 3AZ,Admin
Food Standards Agency,Food Standards Agency,02/04/2015,Subsistence - EC,Better Regulations & Sustainable Development,Redfern Travel Ltd,102812,2.80,Redfern Travel Invoice wk 12,BD1 3AZ,Admin
Food Standards Agency,Food Standards Agency,08/04/2015,Subsistence - EC,Animal Feed Branch,Redfern Travel Ltd,101288,1.42,REDFERN E INVOICE WK 9,BD1 3AZ,Admin
Food Standards Agency,Food Standards Agency,08/04/2015,Subsistence UK,Additives,Redfern Travel Ltd,101288,1.42,REDFERN E INVOICE WK 9,BD1 3AZ,Admin
Food Standards Agency,Food Standards Agency,08/04/2015,Subsistence UK,Area 2 Wales - Cluster 21,Redfern Travel Ltd,103051,1.40,REDFERN TRAVEL INVOICE WK 13,BD1 3AZ,Programme
Food Standards Agency,Food Standards Agency,02/04/2015,Subsistence UK,Area 2 Wales - Cluster 22,Redfern Travel Ltd,102812,1.40,Redfern Travel Invoice wk 12,BD1 3AZ,Programme
Food Standards Agency,Food Standards Agency,28/04/2015,Subsistence - EC,Legal Branch A,Redfern Travel Ltd,80,1.40,REDFERN TRAVEL INVOICE WEEK 16,BD1 3AZ,Admin
Food Standards Agency,Food Standards Agency,08/04/2015,Subsistence - EC,Non Meat Field Ops,Redfern Travel Ltd,101288,1.40,REDFERN E INVOICE WK 9,BD1 3AZ,Programme
Food Standards Agency,Food Standards Agency,08/04/2015,Subsistence - EC,Contaminants HoD,Redfern Travel Ltd,101288,1.40,REDFERN E INVOICE WK 9,BD1 3AZ,Admin
Food Standards Agency,Food Standards Agency,28/04/2015,Subsistence - EC,Contaminants HoD,Redfern Travel Ltd,80,1.40,REDFERN TRAVEL INVOICE WEEK 16,BD1 3AZ,Admin
Food Standards Agency,Food Standards Agency,02/04/2015,Subsistence - EC,Contaminants Policy & Strategy Unit,Redfern Travel Ltd,102812,1.40,Redfern Travel Invoice wk 12,BD1 3AZ,Admin
Food Standards Agency,Food Standards Agency,08/04/2015,Subsistence - EC,EU Regulatory Reform Branch,Redfern Travel Ltd,101288,1.40,REDFERN E INVOICE WK 9,BD1 3AZ,Admin
Food Standards Agency,Food Standards Agency,02/04/2015,Subsistence - EC,Food Hygiene Policy Branch,Redfern Travel Ltd,102812,1.40,Redfern Travel Invoice wk 12,BD1 3AZ,Admin
Food Standards Agency,Food Standards Agency,02/04/2015,Subsistence UK,Animal Feed Branch,Redfern Travel Ltd,102812,1.40,Redfern Travel Invoice wk 12,BD1 3AZ,Admin
Food Standards Agency,Food Standards Agency,08/04/2015,Subsistence - EC,European & International Strategy,Redfern Travel Ltd,101288,1.40,REDFERN E INVOICE WK 9,BD1 3AZ,Admin
Food Standards Agency,Food Standards Agency,08/04/2015,Subsistence - EC,Planning and Performance,Redfern Travel Ltd,101288,1.40,REDFERN E INVOICE WK 9,BD1 3AZ,Admin
Food Standards Agency,Food Standards Agency,28/04/2015,Subsistence UK,IT Service Delivery,Redfern Travel Ltd,80,1.40,REDFERN,BD1 3AZ,Admin
Food Standards Agency,Food Standards Agency,02/04/2015,Subsistence UK,Internal Audit,Redfern Travel Ltd,102812,1.40,Redfern Travel Invoice wk 12,BD1 3AZ,Admin
Food Standards Agency,Food Standards Agency,08/04/2015,Subsistence - EC,Internal Audit,Redfern Travel Ltd,103051,1.40,REDFERN TRAVEL INVOICE WK 13,BD1 3AZ,Admin
Food Standards Agency,Food Standards Agency,28/04/2015,Subsistence UK,Directorate Support Unit,Redfern Travel Ltd,80,0.71,REDFERN TRAVEL INVOICE WEEK 16,BD1 3AZ,Admin
Food Standards Agency,Food Standards Agency,08/04/2015,International Travel,Non Meat Field Ops,Redfern Travel Ltd,101288,0.45,REDFERN E INVOICE WK 9,BD1 3AZ,Programme
Food Standards Agency,Food Standards Agency,20/04/2015,Meat inspection equipment/consumables,Operational Delivery,Arco UK Ltd,50115452,0.03,PO 417064 FOR GOODS INVOICED UP UNTIL 31.01.15,HU1 2SJ,Programme
Food Standards Agency,Food Standards Agency,09/04/2015,Security,Security & Estates,G4s Integrated Services (Uk) Ltd,M21143,0.01,G4S MONTHLY  MAR2015 VAT ON SECURITY ADJUSTMENT,S81 7QF,Admin
Food Standards Agency,Food Standards Agency,10/04/2015,Meat inspection equipment/consumables,Operational Delivery,Arco UK Ltd,50114792,-0.04,PO 417064 FOR GOODS INVOICED UP UNTILL 31/12/2014,HU1 2SJ,Programme
Food Standards Agency,Food Standards Agency,02/04/2015,Utilities,Security & Estates,Defra C/o Capita,1002548011,-3.83,FOSS HSE Q3 COSTS-ADDITIONAL CHARGES,EC2V 7NQ,Admin
Food Standards Agency,Food Standards Agency,02/04/2015,Utilities,Security & Estates,Defra C/o Capita,1002547467,-14.13,FOSS HSE.Q3 COSTS,EC2V 7NQ,Admin
Food Standards Agency,Food Standards Agency,08/04/2015,Travel UK ,Security & Estates,Redfern Travel Ltd,103051,-18.13,Consolidated Invoice - Travel Costs for SES Staff - April 2015,BD1 3AZ,Admin
Food Standards Agency,Food Standards Agency,02/04/2015,Utilities,Security & Estates,Defra C/o Capita,1002548011,-19.62,FOSS HSE Q3 COSTS-ADDITIONAL CHARGES,EC2V 7NQ,Admin
Food Standards Agency,Food Standards Agency,08/04/2015,Travel UK ,Animal Feed Branch,Redfern Travel Ltd,103051,-23.25,REDFERN TRAVEL INVOICE WK 13,BD1 3AZ,Admin
Food Standards Agency,Food Standards Agency,08/04/2015,Travel UK ,Area 5 South West England - Cluster 53,Redfern Travel Ltd,103051,-28.51,REDFERN TRAVEL INVOICE WK 13,BD1 3AZ,Programme
Food Standards Agency,Food Standards Agency,08/04/2015,Travel UK ,Area 6 South East England - Cluster 63,Redfern Travel Ltd,101288,-39.47,REDFERN E INVOICE WK 9,BD1 3AZ,Programme
Food Standards Agency,Food Standards Agency,02/04/2015,Rates/contrib in lieu of rates,Security & Estates,Defra C/o Capita,1002547467,-72.32,FOSS HOUSE Q3 RENT - ADJUSTMENT,EC2V 7NQ,Admin
Food Standards Agency,Food Standards Agency,08/04/2015,Travel UK ,Area 4 North East England - Cluster 47,Redfern Travel Ltd,101288,-96.39,REDFERN E INVOICE WK 9,BD1 3AZ,Programme
Food Standards Agency,Food Standards Agency,02/04/2015,Subsistence UK,Procurement,Redfern Travel Ltd,102812,-96.65,Redfern Travel Invoice wk 12,BD1 3AZ,Admin
Food Standards Agency,Food Standards Agency,08/04/2015,Travel UK ,Area 1 Scotland - Cluster 11,Redfern Travel Ltd,103051,-116.25,REDFERN TRAVEL INVOICE WK 13,BD1 3AZ,Programme
Food Standards Agency,Food Standards Agency,02/04/2015,Travel UK ,Area 5 South West England - Cluster 55,Redfern Travel Ltd,102812,-139.43,Redfern Travel Invoice wk 12,BD1 3AZ,Programme
Food Standards Agency,Food Standards Agency,08/04/2015,Travel UK ,Area 3 North West England - Cluster 32,Redfern Travel Ltd,103051,-149.71,REDFERN TRAVEL INVOICE WK 13,BD1 3AZ,Programme
Food Standards Agency,Food Standards Agency,08/04/2015,Travel UK ,Area 6 South East England - Cluster 66,Redfern Travel Ltd,103051,-393.91,REDFERN TRAVEL INVOICE WK 13,BD1 3AZ,Programme
Food Standards Agency,Food Standards Agency,08/04/2015,Travel Lump sum,Procurement,Redfern Travel Ltd,103051,-710.11,REDFERN TRAVEL INVOICE WK 13,BD1 3AZ,Admin
"Date Run: 01-JUN-15 11.47.25 AM --- Company Code : '17' , Payment Start Date : '01-APR-2015' , Payment End Date : '30-APR-2015'",,,,,,,,,,
